Workbook

Sheet README
A1: Q/d Analysis
A2: Version | B2: Draft (July 13, 2021)
A3: Objective | B3: This screening tool uses Q/d to identify potential sources that may affect visibility at Alaska Class I areas. Q/d is the ratio of the sum of annual emissions (in tons per year, tpy, based on potential to emit (PTE) for new facility or actual operating emissions for existing facility) of PM10, SO2, and NOx from the source to the distance (in kilometers, km) to the nearest boundary of the Class I area. A facility with Q/d exceeding an approval threshold, currently set at 10 tpy/km, may be subject to reporting and permit application.
A4: Background | B4: The Regional Haze Rule requires Alaska to submit a 10-15 year long-term strategy (LTS) to address regional haze visibility impairment in each Class I area in Alaska. To assist the state’s efforts in establishing the LTS and to track and control current and potential new sources that may affect visibility in the Class I areas, ADEC is proposing to establish a Regional Haze Visibility Protection Area (VPA). Emitting sources within the VPA would be subject to reporting and permit application requirements to be set by the state.
C5: Class I Areas VPA is proposed for Denali National Park and Preserve and Tuxedni National Wildlife Refuge Class I areas. There is no air monitoring being conducted for the Bering Sea Wilderness Area due to its remote location and its inaccessibility. VPA is not established for the Simenof Wilderness Area due to large visibility contributions from natural sources and commercial marine emissions that are being addressed through different measures.
A6: Who should use this tool? | B6: All facilities or sources located within the VPA
A7: How to use this tool? | B7: Fill in User Input section in Tab Q_d. [Make sure to enable "Analysis ToolPak - VBA" in File -> Options -> Add-ins] The results are populated automatically. Submit this page to ADEC.
B9: Field | C9: Description
A10: User Input | B10: Facility Name | C10: Facility Information, for informational propose only
B11: Facility ID
B12: Facility State | C12: Alaska
B13: SIC | C13: Standard Industrial Classification, for informational propose only
B14: Facility Latitude | C14: Latitude of the facility in decimal degrees
B15: Facility Longitude | C15: Longitude of the facility in decimal degrees
B16: Is this an existing facility/operation? | C16: Indicate whether the facility is an existing operation
B17: NOx Emissions | C17: NOX emissions at specified facility in tons per year
B18: SO2 Emissions | C18: SO2 emissions at specified facility in tons per year
B19: PM10 Emissions | C19: PM10 emissions at specified facility in tons per year
A20: Results | B20: Distance to Class I Area | C20: Shortest distance between Facility and Class I Area boundary in kilometers.
B21: Q/d_NOx | C21: Q/d_NOx divided by d_km
B22: Q/d_SO2 | C22: Q/d_SO2 divided by d_km
B23: Q/d_PM10 | C23: Q/d_PM10 divided by d_km
B24: Q/d | C24: Q_all_tpy divided by d_km

Sheet Q_d
B1: Q/D Analysis
B2: Alaska Class I Areas
B3: Completed by
B4: Date
B6: User Inputs
B7: Facility Name
B8: Facility ID
B9: Facility State | C9: Alaska
B10: Source Industrial Classification (SIC)
B11: Facility Latitude (Latitude of the facility in decimal degrees)
B12: Facility Longitude (Longitude of the facility in decimal degrees)
B13: Is this an existing facility/operation?
B14: =IF($C$13="Y","Enter below actual operating emissions in tons per year","Enter below potential to emit (PTE) in tons per year") -> Enter below potential to emit (PTE) in tons per year
B15: NOx Emissions (NOx emissions at the facility in tons per year) | D15: tpy
B16: SO2 Emissions (SO2 emissions at the facility in tons per year) | D16: tpy
B17: PM10 Emissions (PM10 emissions at the facility in tons per year) | D17: tpy
B19: Results [ Do not modify ]
B20: Q/D Threshold | C20: 10 | D20: tpy/km
B21: Denali NP and Wilderness
B22: Distance to Class I Area | C22: =IF(OR($C$11="",$C$12="")," ",MIN(Denali_distance!J3:J14903)) ->  | D22: km
B23: Q/D NOx (NOx emissions divided by distance) | C23: =IF($C$22=" ", " ", $C$15/$C$22) ->  | D23: tpy/km
B24: Q/D SO2 (SO2 emissions divided by distance) | C24: =IF($C$22=" ", " ", C16/$C$22) ->  | D24: tpy/km
B25: Q/D PM10 (PM10 emissions divided by distance) | C25: =IF($C$22=" ", " ", C17/$C$22) ->  | D25: tpy/km
B26: Q/D NOx+SO2+PM10 (all emissions divided by distance) | C26: =IF($C$22=" ", " ", SUM(C15:C17)/C$22) ->  | D26: tpy/km
B27: Tuxedni Wilderness
B28: Distance to Class I Area | C28: =IF(OR($C$11="",$C$12="")," ",MIN(TUXE_distance!J3:J96)) ->  | D28: km
B29: Q/D NOx (NOx emissions divided by distance) | C29: =IF($C$28=" ", " ",C15/$C$28) ->  | D29: tpy/km
B30: Q/D SO2 (SO2 emissions divided by distance) | C30: =IF($C$28=" ", " ",C16/$C$28) ->  | D30: tpy/km
B31: Q/D PM10 (PM10 emissions divided by distance) | C31: =IF($C$28=" ", " ",C17/$C$28) ->  | D31: tpy/km
B32: Q/D NOx+SO2+PM10 (all emissions divided by distance) | C32: =IF($C$28=" ", " ",SUM(C15:C17)/C28) ->  | D32: tpy/km
B34: Summary
B35: ="Q/D within the approval threshold of "&C20&" tpy/km" -> Q/D within the approval threshold of 10 tpy/km
B36: Denali NP and Wilderness | C36: =IF(C22=" "," ",IF(MAX(C23:C26)<=$C$20,"Yes","No")) -> 
B37: Tuxedni Wilderness | C37: =IF(C28=" "," ",IF(MAX(C29:C32)<=C20,"Yes","No")) -> 

Sheet Denali_distance (hidden)
A1: Denali
A2: Boundary_pt | B2: Lat | C2: Lon | D2: lcpx | E2: lcpy | F2: facility_lat | G2: facility_lon | H2: facility_x | I2: facility_y | J2: distance | K2: dist_xy | L2: Difference
A3: 1 | B3: 62.46650997 | C3: -151.151805 | D3: =lcpx(B3,C3,63,-115,70,60) -> -1753.258238 | E3: =lcpy(B3,C3,63,-115,70,60) -> 456.9873551 | F3: =Q_d!$C$11 -> 0 | G3: =Q_d!$C$12 -> 0 | H3: =lcpx(F3,G3,63,-115,70,60) -> 11233.58983 | I3: =lcpy(F3,G3,63,-115,70,60) -> 6052.604466 | J3: =SQRT((H3-D3)^2+(I3-E3)^2) -> 14141.045 | K3: 324.530432 | L3: =K3-J3 -> -13816.51457
A4: 2 | B4: 62.46650997 | C4: -151.1549955 | D4: -1753.395673 | E4: 457.0759543 | F4: =Q_d!$C$11 -> 0 | G4: =Q_d!$C$12 -> 0 | H4: =lcpx(F4,G4,63,-115,70,60) -> 11233.58983 | I4: =lcpy(F4,G4,63,-115,70,60) -> 6052.604466 | J4: =SQRT((H4-D4)^2+(I4-E4)^2) -> 14141.13616 | K4: 324.5654292 | L4: =K4-J4 -> -13816.57073
A5: 3 | B5: 62.46650997 | C5: -151.1589955 | D5: -1753.567974 | E5: 457.1870434 | F5: =Q_d!$C$11 -> 0 | G5: =Q_d!$C$12 -> 0 | H5: 11233.58983 | I5: 6052.604466 | J5: 14141.25044 | K5: 324.6105557 | L5: -13816.63989
A6: 4 | B6: 62.46650997 | C6: -151.1629955 | D6: -1753.740268 | E6: 457.2981436 | F6: =Q_d!$C$11 -> 0 | G6: =Q_d!$C$12 -> 0 | H6: 11233.58983 | I6: 6052.604466 | J6: 14141.36471 | K6: 324.6552139 | L6: -13816.7095
A7: 5 | B7: 62.46650997 | C7: -151.1669955 | D7: -1753.912555 | E7: 457.4092546 | F7: =Q_d!$C$11 -> 0 | G7: =Q_d!$C$12 -> 0 | H7: 11233.58983 | I7: 6052.604466 | J7: 14141.47898 | K7: 324.6999951 | L7: -13816.77898
A8: 6 | B8: 62.46650997 | C8: -151.1709955 | D8: -1754.084835 | E8: 457.5203766 | F8: =Q_d!$C$11 -> 0 | G8: =Q_d!$C$12 -> 0 | H8: 11233.58983 | I8: 6052.604466 | J8: 14141.59324 | K8: 324.7448991 | L8: -13816.84834
A9: 7 | B9: 62.46650997 | C9: -151.1749955 | D9: -1754.257108 | E9: 457.6315095 | F9: =Q_d!$C$11 -> 0 | G9: =Q_d!$C$12 -> 0 | H9: 11233.58983 | I9: 6052.604466 | J9: 14141.70748 | K9: 324.7895821 | L9: -13816.9179
A10: 8 | B10: 62.46894939 | C10: -151.1518152 | D10: -1753.112138 | E10: 457.214961 | F10: =Q_d!$C$11 -> 0 | G10: =Q_d!$C$12 -> 0 | H10: 11233.58983 | I10: 6052.604466 | J10: 14140.82076 | K10: 324.7940074 | L10: -13816.02675
A11: 9 | B11: 62.46650997 | C11: -151.1789955 | D11: -1754.429374 | E11: 457.7426532 | F11: =Q_d!$C$11 -> 0 | G11: =Q_d!$C$12 -> 0 | H11: 11233.58983 | I11: 6052.604466 | J11: 14141.82172 | K11: 324.8347323 | L11: -13816.98699
A12: 10 | B12: 62.46650996 | C12: -151.1829955 | D12: -1754.601633 | E12: 457.8538079 | F12: =Q_d!$C$11 -> 0 | G12: =Q_d!$C$12 -> 0 | H12: 11233.58983 | I12: 6052.604466 | J12: 14141.93595 | K12: 324.8800051 | L12: -13817.05595
A13: 11 | B13: 62.46650996 | C13: -151.1845759 | D13: -1754.669688 | E13: 457.897727 | F13: =Q_d!$C$11 -> 0 | G13: =Q_d!$C$12 -> 0 | H13: 11233.58983 | I13: 6052.604466 | J13: 14141.98108 | K13: 324.8980468 | L13: -13817.08303
A14: 12 | B14: 62.46650996 | C14: -151.1885759 | D14: -1754.841937 | E14: 458.008897 | F14: =Q_d!$C$11 -> 0 | G14: =Q_d!$C$12 -> 0 | H14: 11233.58983 | I14: 6052.604466 | J14: 14142.0953 | K14: 324.9434909 | L14: -13817.15181
A15: 13 | B15: 62.46650996 | C15: -151.1925759 | D15: -1755.014179 | E15: 458.1200777 | F15: =Q_d!$C$11 -> 0 | G15: =Q_d!$C$12 -> 0 | H15: 11233.58983 | I15: 6052.604466 | J15: 14142.20951 | K15: 324.9896562 | L15: -13817.21985
A16: 14 | B16: 62.46650996 | C16: -151.1965759 | D16: -1755.186414 | E16: 458.2312695 | F16: =Q_d!$C$11 -> 0 | G16: =Q_d!$C$12 -> 0 | H16: 11233.58983 | I16: 6052.604466 | J16: 14142.32371 | K16: 325.0353461 | L16: -13817.28836
A17: 15 | B17: 62.46650996 | C17: -151.2005759 | D17: -1755.358642 | E17: 458.3424721 | F17: =Q_d!$C$11 -> 0 | G17: =Q_d!$C$12 -> 0 | H17: 11233.58983 | I17: 6052.604466 | J17: 14142.4379 | K17: 325.0811586 | L17: -13817.35674
A18: 16 | B18: 62.46650996 | C18: -151.2045759 | D18: -1755.530863 | E18: 458.4536857 | F18: =Q_d!$C$11 -> 0 | G18: =Q_d!$C$12 -> 0 | H18: 11233.58983 | I18: 6052.604466 | J18: 14142.55208 | K18: 325.1270935 | L18: -13817.42499
A19: 17 | B19: 62.46650996 | C19: -151.2085759 | D19: -1755.703076 | E19: 458.5649103 | F19: =Q_d!$C$11 -> 0 | G19: =Q_d!$C$12 -> 0 | H19: 11233.58983 | I19: 6052.604466 | J19: 14142.66626 | K19: 325.1728117 | L19: -13817.49344
A20: 18 | B20: 62.46650996 | C20: -151.2125759 | D20: -1755.875283 | E20: 458.6761456 | F20: =Q_d!$C$11 -> 0 | G20: =Q_d!$C$12 -> 0 | H20: 11233.58983 | I20: 6052.604466 | J20: 14142.78042 | K20: 325.2199329 | L20: -13817.56049
A21: 19 | B21: 62.47294935 | C21: -151.1518319 | D21: -1752.872577 | E21: 457.58817 | F21: =Q_d!$C$11 -> 0 | G21: =Q_d!$C$12 -> 0 | H21: 11233.58983 | I21: 6052.604466 | J21: 14140.45308 | K21: 325.2281009 | L21: -13815.22498
A22: 20 | B22: 62.46650996 | C22: -151.2157664 | D22: -1756.012634 | E22: 458.764877 | F22: =Q_d!$C$11 -> 0 | G22: =Q_d!$C$12 -> 0 | H22: 11233.58983 | I22: 6052.604466 | J22: 14142.87148 | K22: 325.2564151 | L22: -13817.61506
A23: 21 | B23: 62.46650996 | C23: -151.2197664 | D23: -1756.184828 | E23: 458.876132 | F23: =Q_d!$C$11 -> 0 | G23: =Q_d!$C$12 -> 0 | H23: 11233.58983 | I23: 6052.604466 | J23: 14142.98563 | K23: 325.3037564 | L23: -13817.68187
A24: 22 | B24: 62.46650996 | C24: -151.2237664 | D24: -1756.357015 | E24: 458.9873978 | F24: =Q_d!$C$11 -> 0 | G24: =Q_d!$C$12 -> 0 | H24: 11233.58983 | I24: 6052.604466 | J24: 14143.09977 | K24: 325.3499419 | L24: -13817.74982
A25: 23 | B25: 62.46650996 | C25: -151.2277664 | D25: -1756.529195 | E25: 459.0986747 | F25: =Q_d!$C$11 -> 0 | G25: =Q_d!$C$12 -> 0 | H25: 11233.58983 | I25: 6052.604466 | J25: 14143.2139 | K25: 325.3965869 | L25: -13817.81731
A26: 24 | B26: 62.46650996 | C26: -151.2317664 | D26: -1756.701367 | E26: 459.2099624 | F26: =Q_d!$C$11 -> 0 | G26: =Q_d!$C$12 -> 0 | H26: 11233.58983 | I26: 6052.604466 | J26: 14143.32802 | K26: 325.443354 | L26: -13817.88467
A27: 25 | B27: 62.46650996 | C27: -151.2357664 | D27: -1756.873533 | E27: 459.321261 | F27: =Q_d!$C$11 -> 0 | G27: =Q_d!$C$12 -> 0 | H27: 11233.58983 | I27: 6052.604466 | J27: 14143.44214 | K27: 325.4911853 | L27: -13817.95095
A28: 26 | B28: 62.46650995 | C28: -151.2397664 | D28: -1757.045692 | E28: 459.4325705 | F28: =Q_d!$C$11 -> 0 | G28: =Q_d!$C$12 -> 0 | H28: 11233.58983 | I28: 6052.604466 | J28: 14143.55624 | K28: 325.5381966 | L28: -13818.01805
A29: 27 | B29: 62.46650995 | C29: -151.2437664 | D29: -1757.217844 | E29: 459.543891 | F29: =Q_d!$C$11 -> 0 | G29: =Q_d!$C$12 -> 0 | H29: 11233.58983 | I29: 6052.604466 | J29: 14143.67034 | K29: 325.5853298 | L29: -13818.08501
A30: 28 | B30: 62.46650995 | C30: -151.2469569 | D30: -1757.355151 | E30: 459.6326903 | F30: =Q_d!$C$11 -> 0 | G30: =Q_d!$C$12 -> 0 | H30: 11233.58983 | I30: 6052.604466 | J30: 14143.76134 | K30: 325.6231793 | L30: -13818.13816
A31: 29 | B31: 62.47694932 | C31: -151.1518486 | D31: -1752.633016 | E31: 457.9613779 | F31: =Q_d!$C$11 -> 0 | G31: =Q_d!$C$12 -> 0 | H31: 11233.58983 | I31: 6052.604466 | J31: 14140.0854 | K31: 325.6609366 | L31: -13814.42446
A32: 30 | B32: 62.46650995 | C32: -151.2509569 | D32: -1757.52729 | E32: 459.7440304 | F32: =Q_d!$C$11 -> 0 | G32: =Q_d!$C$12 -> 0 | H32: 11233.58983 | I32: 6052.604466 | J32: 14143.87542 | K32: 325.6714751 | L32: -13818.20395
A33: 31 | B33: 62.46650995 | C33: -151.2549569 | D33: -1757.699422 | E33: 459.8553813 | F33: =Q_d!$C$11 -> 0 | G33: =Q_d!$C$12 -> 0 | H33: 11233.58983 | I33: 6052.604466 | J33: 14143.98949 | K33: 325.7189499 | L33: -13818.27054
A34: 32 | B34: 62.46650995 | C34: -151.2589569 | D34: -1757.871547 | E34: 459.9667431 | F34: =Q_d!$C$11 -> 0 | G34: =Q_d!$C$12 -> 0 | H34: 11233.58983 | I34: 6052.604466 | J34: 14144.10356 | K34: 325.7665464 | L34: -13818.33701
A35: 33 | B35: 62.46650995 | C35: -151.2629569 | D35: =lcpx(B35,C35,63,-115,70,60) -> -1758.043664 | E35: =lcpy(B35,C35,63,-115,70,60) -> 460.0781159 | F35: =Q_d!$C$11 -> 0 | G35: =Q_d!$C$12 -> 0 | H35: 11233.58983 | I35: 6052.604466 | J35: 14144.21761 | K35: 325.8152081 | L35: -13818.40241
A36: 34 | B36: 62.46650995 | C36: -151.2669569 | D36: -1758.215775 | E36: 460.1894996 | F36: =Q_d!$C$11 -> 0 | G36: =Q_d!$C$12 -> 0 | H36: 11233.58983 | I36: 6052.604466 | J36: 14144.33166 | K36: 325.8630481 | L36: -13818.46861
A37: 35 | B37: 62.46650995 | C37: -151.2709569 | D37: -1758.387879 | E37: 460.3008942 | F37: =Q_d!$C$11 -> 0 | G37: =Q_d!$C$12 -> 0 | H37: 11233.58983 | I37: 6052.604466 | J37: 14144.4457 | K37: 325.9110097 | L37: -13818.53469
A38: 36 | B38: 62.46650995 | C38: -151.2749569 | D38: -1758.559976 | E38: 460.4122996 | F38: =Q_d!$C$11 -> 0 | G38: =Q_d!$C$12 -> 0 | H38: 11233.58983 | I38: 6052.604466 | J38: 14144.55973 | K38: 325.9597075 | L38: -13818.60002
A39: 37 | B39: 62.46650995 | C39: -151.2781473 | D39: -1758.697238 | E39: 460.5011667 | F39: =Q_d!$C$11 -> 0 | G39: =Q_d!$C$12 -> 0 | H39: 11233.58983 | I39: 6052.604466 | J39: 14144.65067 | K39: 325.9986482 | L39: -13818.65202
A40: 38 | B40: 62.46650995 | C40: -151.2821473 | D40: -1758.869322 | E40: 460.6125918 | F40: =Q_d!$C$11 -> 0 | G40: =Q_d!$C$12 -> 0 | H40: 11233.58983 | I40: 6052.604466 | J40: 14144.76469 | K40: 326.0469503 | L40: -13818.71774
A41: 39 | B41: 62.48094928 | C41: -151.1518653 | D41: -1752.393456 | E41: 458.3345844 | F41: =Q_d!$C$11 -> 0 | G41: =Q_d!$C$12 -> 0 | H41: 11233.58983 | I41: 6052.604466 | J41: 14139.71773 | K41: 326.0941479 | L41: -13813.62358
A42: 40 | B42: 62.46650995 | C42: -151.2861473 | D42: -1759.041399 | E42: 460.7240279 | F42: =Q_d!$C$11 -> 0 | G42: =Q_d!$C$12 -> 0 | H42: 11233.58983 | I42: 6052.604466 | J42: 14144.87869 | K42: 326.0963184 | L42: -13818.78237
A43: 41 | B43: 62.46650995 | C43: -151.2901473 | D43: -1759.213469 | E43: 460.8354747 | F43: =Q_d!$C$11 -> 0 | G43: =Q_d!$C$12 -> 0 | H43: 11233.58983 | I43: 6052.604466 | J43: 14144.99269 | K43: 326.1448634 | L43: -13818.84782
A44: 42 | B44: 62.46650995 | C44: -151.2941473 | D44: -1759.385532 | E44: 460.9469325 | F44: =Q_d!$C$11 -> 0 | G44: =Q_d!$C$12 -> 0 | H44: 11233.58983 | I44: 6052.604466 | J44: 14145.10667 | K44: 326.1935295 | L44: -13818.91314
A45: 43 | B45: 62.46650995 | C45: -151.2981473 | D45: -1759.557588 | E45: 461.0584011 | F45: =Q_d!$C$11 -> 0 | G45: =Q_d!$C$12 -> 0 | H45: 11233.58983 | I45: 6052.604466 | J45: 14145.22065 | K45: 326.2432622 | L45: -13818.97739
A46: 44 | B46: 62.46650994 | C46: -151.3021473 | D46: -1759.729637 | E46: 461.1698806 | F46: =Q_d!$C$11 -> 0 | G46: =Q_d!$C$12 -> 0 | H46: 11233.58983 | I46: 6052.604466 | J46: 14145.33462 | K46: 326.2921709 | L46: -13819.04245
A47: 45 | B47: 62.46650994 | C47: -151.3061473 | D47: -1759.901678 | E47: 461.2813712 | F47: =Q_d!$C$11 -> 0 | G47: =Q_d!$C$12 -> 0 | H47: 11233.58983 | I47: 6052.604466 | J47: 14145.44858 | K47: 326.3421464 | L47: -13819.10644
A48: 46 | B48: 62.46650994 | C48: -151.3093378 | D48: -1760.038897 | E48: 461.370306 | F48: =Q_d!$C$11 -> 0 | G48: =Q_d!$C$12 -> 0 | H48: 11233.58983 | I48: 6052.604466 | J48: 14145.53947 | K48: 326.3818414 | L48: -13819.15763
A49: 47 | B49: 62.46650994 | C49: -151.3133378 | D49: -1760.210926 | E49: 461.4818161 | F49: =Q_d!$C$11 -> 0 | G49: =Q_d!$C$12 -> 0 | H49: 11233.58983 | I49: 6052.604466 | J49: 14145.65342 | K49: 326.4310888 | L49: -13819.22233
A50: 48 | B50: 62.46650994 | C50: -151.3173378 | D50: -1760.382948 | E50: 461.5933371 | F50: =Q_d!$C$11 -> 0 | G50: =Q_d!$C$12 -> 0 | H50: 11233.58983 | I50: 6052.604466 | J50: 14145.76735 | K50: 326.4814035 | L50: -13819.28595
A51: 49 | B51: 62.48494925 | C51: -151.151882 | D51: -1752.153896 | E51: 458.7077901 | F51: =Q_d!$C$11 -> 0 | G51: =Q_d!$C$12 -> 0 | H51: 11233.58983 | I51: 6052.604466 | J51: 14139.35006 | K51: 326.5273869 | L51: -13812.82268
A52: 50 | B52: 62.46650994 | C52: -151.3213378 | D52: -1760.554963 | E52: 461.7048689 | F52: =Q_d!$C$11 -> 0 | G52: =Q_d!$C$12 -> 0 | H52: 11233.58983 | I52: 6052.604466 | J52: 14145.88128 | K52: 326.5305702 | L52: -13819.35071
A53: 51 | B53: 62.46650994 | C53: -151.3253378 | D53: -1760.726971 | E53: 461.8164116 | F53: =Q_d!$C$11 -> 0 | G53: =Q_d!$C$12 -> 0 | H53: 11233.58983 | I53: 6052.604466 | J53: 14145.9952 | K53: 326.5811277 | L53: -13819.41407
A54: 52 | B54: 62.46650994 | C54: -151.3293378 | D54: -1760.898971 | E54: 461.9279653 | F54: =Q_d!$C$11 -> 0 | G54: =Q_d!$C$12 -> 0 | H54: 11233.58983 | I54: 6052.604466 | J54: 14146.10911 | K54: 326.6308595 | L54: -13819.47825
A55: 53 | B55: 62.46650994 | C55: -151.3333378 | D55: -1761.070965 | E55: 462.0395299 | F55: =Q_d!$C$11 -> 0 | G55: =Q_d!$C$12 -> 0 | H55: 11233.58983 | I55: 6052.604466 | J55: 14146.22301 | K55: 326.6816591 | L55: -13819.54135
A56: 53 | B56: 62.46650994 | C56: -151.3373378 | D56: =lcpx(B56,C56,63,-115,70,60) -> -1761.242951 | E56: =lcpy(B56,C56,63,-115,70,60) -> 462.1511053 | F56: =Q_d!$C$11 -> 0 | G56: =Q_d!$C$12 -> 0 | H56: =lcpx(F56,G56,63,-115,70,60) -> 11233.58983 | I56: =lcpy(F56,G56,63,-115,70,60) -> 6052.604466 | J56: =SQRT((H56-D56)^2+(I56-E56)^2) -> 14146.33691 | K56: 326.7329002 | L56: -13819.60401
A57: 53 | B57: 62.46650994 | C57: -151.3405283 | D57: -1761.380126 | E57: 462.240108 | F57: =Q_d!$C$11 -> 0 | G57: =Q_d!$C$12 -> 0 | H57: 11233.58983 | I57: 6052.604466 | J57: 14146.42774 | K57: 326.7730269 | L57: -13819.65472
A58: 53 | B58: 62.46650994 | C58: -151.3445283 | D58: -1761.5521 | E58: 462.3517031 | F58: =Q_d!$C$11 -> 0 | G58: =Q_d!$C$12 -> 0 | H58: 11233.58983 | I58: 6052.604466 | J58: 14146.54162 | K58: 326.8232171 | L58: -13819.7184
A59: 53 | B59: 62.46650994 | C59: -151.3485283 | D59: -1761.724067 | E59: 462.463309 | F59: =Q_d!$C$11 -> 0 | G59: =Q_d!$C$12 -> 0 | H59: 11233.58983 | I59: 6052.604466 | J59: 14146.65549 | K59: 326.8744757 | L59: -13819.78101
A60: 53 | B60: 62.46650994 | C60: -151.3525283 | D60: -1761.896027 | E60: 462.5749258 | F60: =Q_d!$C$11 -> 0 | G60: =Q_d!$C$12 -> 0 | H60: 11233.58983 | I60: 6052.604466 | J60: 14146.76935 | K60: 326.9249071 | L60: -13819.84444
A61: 53 | B61: 62.48894921 | C61: -151.1518987 | D61: -1751.914338 | E61: 459.0809945 | F61: =Q_d!$C$11 -> 0 | G61: =Q_d!$C$12 -> 0 | H61: 11233.58983 | I61: 6052.604466 | J61: 14138.9824 | K61: 326.961242 | L61: -13812.02116
A62: 53 | B62: 62.46650994 | C62: -151.3565283 | D62: -1762.067979 | E62: 462.6865535 | F62: =Q_d!$C$11 -> 0 | G62: =Q_d!$C$12 -> 0 | H62: 11233.58983 | I62: 6052.604466 | J62: 14146.8832 | K62: 326.976407 | L62: -13819.90679
A63: 53 | B63: 62.46650994 | C63: -151.3605283 | D63: -1762.239925 | E63: 462.7981922 | F63: =Q_d!$C$11 -> 0 | G63: =Q_d!$C$12 -> 0 | H63: 11233.58983 | I63: 6052.604466 | J63: 14146.99704 | K63: 327.0283448 | L63: -13819.9687
A64: 53 | B64: 62.46650993 | C64: -151.3645283 | D64: -1762.411863 | E64: 462.9098416 | F64: =Q_d!$C$11 -> 0 | G64: =Q_d!$C$12 -> 0 | H64: 11233.58983 | I64: 6052.604466 | J64: 14147.11087 | K64: 327.079137 | L64: -13820.03174
A65: 53 | B65: 62.46650993 | C65: -151.3685283 | D65: -1762.583795 | E65: 463.0215022 | F65: =Q_d!$C$11 -> 0 | G65: =Q_d!$C$12 -> 0 | H65: 11233.58983 | I65: 6052.604466 | J65: 14147.2247 | K65: 327.1309981 | L65: -13820.0937
A66: 53 | B66: 62.46650993 | C66: -151.3701084 | D66: -1762.651709 | E66: 463.0656131 | F66: =Q_d!$C$11 -> 0 | G66: =Q_d!$C$12 -> 0 | H66: 11233.58983 | I66: 6052.604466 | J66: 14147.26966 | K66: 327.1512698 | L66: -13820.11839
A67: 53 | B67: 62.46650993 | C67: -151.3741084 | D67: -1762.823631 | E67: 463.1772887 | F67: =Q_d!$C$11 -> 0 | G67: =Q_d!$C$12 -> 0 | H67: 11233.58983 | I67: 6052.604466 | J67: 14147.38347 | K67: 327.2032991 | L67: -13820.18017
A68: 53 | B68: 62.46650993 | C68: -151.3781084 | D68: -1762.995545 | E68: 463.2889752 | F68: =Q_d!$C$11 -> 0 | G68: =Q_d!$C$12 -> 0 | H68: 11233.58983 | I68: 6052.604466 | J68: 14147.49727 | K68: 327.2554489 | L68: =K68-J68 -> -13820.24183
A69: 53 | B69: 62.46650993 | C69: -151.3821084 | D69: -1763.167452 | E69: 463.4006725 | F69: =Q_d!$C$11 -> 0 | G69: =Q_d!$C$12 -> 0 | H69: 11233.58983 | I69: 6052.604466 | J69: 14147.61107 | K69: 327.3067696 | L69: -13820.3043
A70: 53 | B70: 62.46650993 | C70: -151.3861084 | D70: -1763.339353 | E70: 463.5123809 | F70: =Q_d!$C$11 -> 0 | G70: =Q_d!$C$12 -> 0 | H70: 11233.58983 | I70: 6052.604466 | J70: 14147.72486 | K70: 327.3591599 | L70: -13820.3657
A71: 53 | B71: 62.49294918 | C71: -151.1519155 | D71: -1751.67478 | E71: 459.4541977 | F71: =Q_d!$C$11 -> 0 | G71: =Q_d!$C$12 -> 0 | H71: 11233.58983 | I71: 6052.604466 | J71: 14138.61475 | K71: 327.3945357 | L71: -13811.22021
A72: 53 | B72: 62.46650993 | C72: -151.3901084 | D72: -1763.511246 | E72: 463.6241 | F72: =Q_d!$C$11 -> 0 | G72: =Q_d!$C$12 -> 0 | H72: 11233.58983 | I72: 6052.604466 | J72: 14147.83863 | K72: 327.4116705 | L72: -13820.42696
A73: 53 | B73: 62.46650993 | C73: -151.3941084 | D73: -1763.683132 | E73: 463.73583 | F73: =Q_d!$C$11 -> 0 | G73: =Q_d!$C$12 -> 0 | H73: 11233.58983 | I73: 6052.604466 | J73: 14147.9524 | K73: 327.4633513 | L73: -13820.48905
A74: 53 | B74: 62.46650993 | C74: -151.3981084 | D74: -1763.855011 | E74: 463.847571 | F74: =Q_d!$C$11 -> 0 | G74: =Q_d!$C$12 -> 0 | H74: 11233.58983 | I74: 6052.604466 | J74: 14148.06616 | K74: 327.5161021 | L74: -13820.55006
A75: 53 | B75: 62.49538856 | C75: -151.1519257 | D75: -1751.528685 | E75: 459.681796 | F75: =Q_d!$C$11 -> 0 | G75: =Q_d!$C$12 -> 0 | H75: 11233.58983 | I75: 6052.604466 | J75: 14138.39053 | K75: 327.6582221 | L75: -13810.73231
A76: 53 | B76: 62.49782792 | C76: -151.1519359 | D76: -1751.382593 | E76: 459.9093911 | F76: =Q_d!$C$11 -> 0 | G76: =Q_d!$C$12 -> 0 | H76: 11233.58983 | I76: 6052.604466 | J76: 14138.16633 | K76: 327.9228556 | L76: -13810.24347
A77: 53 | B77: 62.47050993 | C77: -151.3981084 | D77: -1763.613276 | E77: 464.2193804 | F77: =Q_d!$C$11 -> 0 | G77: =Q_d!$C$12 -> 0 | H77: 11233.58983 | I77: 6052.604466 | J77: 14147.69722 | K77: 327.9450187 | L77: -13819.7522
A78: 53 | B78: 62.50182789 | C78: -151.1519526 | D78: -1751.143037 | E78: 460.2825919 | F78: =Q_d!$C$11 -> 0 | G78: =Q_d!$C$12 -> 0 | H78: 11233.58983 | I78: 6052.604466 | J78: 14137.79868 | K78: 328.3558602 | L78: -13809.44282
A79: 53 | B79: 62.47450993 | C79: -151.3981084 | D79: -1763.371542 | E79: 464.5911887 | F79: =Q_d!$C$11 -> 0 | G79: =Q_d!$C$12 -> 0 | H79: 11233.58983 | I79: 6052.604466 | J79: 14147.32828 | K79: 328.3739749 | L79: -13818.9543
A80: 53 | B80: 62.50582785 | C80: -151.1519693 | D80: -1750.903482 | E80: 460.6557914 | F80: =Q_d!$C$11 -> 0 | G80: =Q_d!$C$12 -> 0 | H80: 11233.58983 | I80: 6052.604466 | J80: 14137.43105 | K80: 328.7892414 | L80: -13808.64181
A81: 53 | B81: 62.47850993 | C81: -151.3981084 | D81: -1763.129808 | E81: 464.9629959 | F81: =Q_d!$C$11 -> 0 | G81: =Q_d!$C$12 -> 0 | H81: 11233.58983 | I81: 6052.604466 | J81: 14146.95934 | K81: 328.8029704 | L81: -13818.15637
A82: 53 | B82: 62.48094924 | C82: -151.3981084 | D82: -1762.982392 | E82: 465.1897339 | F82: =Q_d!$C$11 -> 0 | G82: =Q_d!$C$12 -> 0 | H82: 11233.58983 | I82: 6052.604466 | J82: 14146.73436 | K82: 329.0636092 | L82: -13817.67075
A83: 53 | B83: 62.50982782 | C83: -151.1519861 | D83: -1750.663927 | E83: 461.0289898 | F83: =Q_d!$C$11 -> 0 | G83: =Q_d!$C$12 -> 0 | H83: 11233.58983 | I83: 6052.604466 | J83: 14137.06341 | K83: 329.2235863 | L83: -13807.83983
A84: 53 | B84: 62.48494924 | C84: -151.3981084 | D84: -1762.74066 | E84: 465.5615392 | F84: =Q_d!$C$11 -> 0 | G84: =Q_d!$C$12 -> 0 | H84: 11233.58983 | I84: 6052.604466 | J84: 14146.36543 | K84: 329.4926676 | L84: -13816.87276
A85: 53 | B85: 62.51382778 | C85: -151.1520028 | D85: -1750.424374 | E85: 461.4021872 | F85: =Q_d!$C$11 -> 0 | G85: =Q_d!$C$12 -> 0 | H85: 11233.58983 | I85: 6052.604466 | J85: 14136.69579 | K85: 329.656671 | L85: -13807.03912
A86: 53 | B86: 62.48894924 | C86: -151.3981084 | D86: -1762.498928 | E86: 465.9333433 | F86: =Q_d!$C$11 -> 0 | G86: =Q_d!$C$12 -> 0 | H86: 11233.58983 | I86: 6052.604466 | J86: 14145.99651 | K86: 329.9217651 | L86: -13816.07475
A87: 53 | B87: 62.51782775 | C87: -151.1520196 | D87: -1750.184821 | E87: 461.7753836 | F87: =Q_d!$C$11 -> 0 | G87: =Q_d!$C$12 -> 0 | H87: 11233.58983 | I87: 6052.604466 | J87: 14136.32817 | K87: 330.0901326 | L87: -13806.23804
A88: 53 | B88: 62.49294924 | C88: -151.3981084 | D88: -1762.257197 | E88: 466.3051463 | F88: =Q_d!$C$11 -> 0 | G88: =Q_d!$C$12 -> 0 | H88: 11233.58983 | I88: 6052.604466 | J88: 14145.6276 | K88: 330.3505875 | L88: -13815.27701
A89: 53 | B89: 62.52182771 | C89: -151.1520363 | D89: -1749.945268 | E89: 462.1485784 | F89: =Q_d!$C$11 -> 0 | G89: =Q_d!$C$12 -> 0 | H89: 11233.58983 | I89: 6052.604466 | J89: 14135.96055 | K89: 330.5232701 | L89: -13805.43728
A90: 53 | B90: 62.49538852 | C90: -151.3981084 | D90: -1762.109785 | E90: 466.531879 | F90: =Q_d!$C$11 -> 0 | G90: =Q_d!$C$12 -> 0 | H90: 11233.58983 | I90: 6052.604466 | J90: 14145.40263 | K90: 330.6116253 | L90: -13814.791
A91: 53 | B91: 62.52426704 | C91: -151.1520465 | D91: -1749.79918 | E91: 462.3761658 | F91: =Q_d!$C$11 -> 0 | G91: =Q_d!$C$12 -> 0 | H91: 11233.58983 | I91: 6052.604466 | J91: 14135.73637 | K91: 330.7880106 | L91: -13804.94836
A92: 53 | B92: 62.49938852 | C92: -151.3981084 | D92: -1761.868055 | E92: 466.90368 | F92: =Q_d!$C$11 -> 0 | G92: =Q_d!$C$12 -> 0 | H92: 11233.58983 | I92: 6052.604466 | J92: 14145.03372 | K92: 331.0405093 | L92: -13813.99321
A93: 53 | B93: 62.52670634 | C93: -151.1520567 | D93: -1749.653095 | E93: 462.6037506 | F93: =Q_d!$C$11 -> 0 | G93: =Q_d!$C$12 -> 0 | H93: 11233.58983 | I93: 6052.604466 | J93: 14135.51219 | K93: 331.0518245 | L93: -13804.46037
A94: 53 | B94: 62.50338852 | C94: -151.3981084 | D94: -1761.626326 | E94: 467.27548 | F94: =Q_d!$C$11 -> 0 | G94: =Q_d!$C$12 -> 0 | H94: 11233.58983 | I94: 6052.604466 | J94: 14144.66482 | K94: 331.4697458 | L94: -13813.19508
A95: 53 | B95: 62.5307063 | C95: -151.1520735 | D95: -1749.413545 | E95: 462.9769431 | F95: =Q_d!$C$11 -> 0 | G95: =Q_d!$C$12 -> 0 | H95: 11233.58983 | I95: 6052.604466 | J95: 14135.14459 | K95: 331.4853714 | L95: -13803.65922
A96: 53 | B96: 62.50738852 | C96: -151.3981084 | D96: -1761.384598 | E96: 467.6472788 | F96: =Q_d!$C$11 -> 0 | G96: =Q_d!$C$12 -> 0 | H96: 11233.58983 | I96: 6052.604466 | J96: 14144.29593 | K96: 331.8990205 | L96: -13812.39691
A97: 53 | B97: 62.53470626 | C97: -151.1520903 | D97: -1749.173995 | E97: 463.3501346 | F97: =Q_d!$C$11 -> 0 | G97: =Q_d!$C$12 -> 0 | H97: 11233.58983 | I97: 6052.604466 | J97: 14134.77699 | K97: 331.9195291 | L97: -13802.85746
A98: 53 | B98: 62.50982778 | C98: -151.3981084 | D98: -1761.237189 | E98: 467.8740061 | F98: =Q_d!$C$11 -> 0 | G98: =Q_d!$C$12 -> 0 | H98: 11233.58983 | I98: 6052.604466 | J98: 14144.07097 | K98: 332.1607773 | L98: -13811.91019
A99: 53 | B99: 62.53870623 | C99: -151.1521071 | D99: -1748.934446 | E99: 463.7233246 | F99: =Q_d!$C$11 -> 0 | G99: =Q_d!$C$12 -> 0 | H99: 11233.58983 | I99: 6052.604466 | J99: 14134.4094 | K99: 332.3531284 | L99: -13802.05627
A100: 53 | B100: 62.51382778 | C100: -151.3981084 | D100: -1760.995462 | E100: 468.2458032 | F100: =Q_d!$C$11 -> 0 | G100: =Q_d!$C$12 -> 0 | H100: 11233.58983 | I100: 6052.604466 | J100: 14143.70208 | K100: 332.5891642 | L100: -13811.11292
A101: 53 | B101: 62.54270619 | C101: -151.1521238 | D101: -1748.694897 | E101: 464.096514 | F101: =Q_d!$C$11 -> 0 | G101: =Q_d!$C$12 -> 0 | H101: 11233.58983 | I101: 6052.604466 | J101: 14134.04181 | K101: 332.7867539 | L101: -13801.25506
A102: 53 | B102: 62.51782777 | C102: -151.3981084 | D102: -1760.753736 | E102: 468.6175989 | F102: =Q_d!$C$11 -> 0 | G102: =Q_d!$C$12 -> 0 | H102: 11233.58983 | I102: 6052.604466 | J102: 14143.3332 | K102: 333.0185381 | L102: -13810.31467
A103: 53 | B103: 62.54670616 | C103: -151.1521406 | D103: -1748.45535 | E103: 464.4697021 | F103: =Q_d!$C$11 -> 0 | G103: =Q_d!$C$12 -> 0 | H103: 11233.58983 | I103: 6052.604466 | J103: 14133.67423 | K103: 333.2200529 | L103: -13800.45418
A104: 53 | B104: 62.52182777 | C104: -151.3981084 | D104: -1760.51201 | E104: 468.9893935 | F104: =Q_d!$C$11 -> 0 | G104: =Q_d!$C$12 -> 0 | H104: 11233.58983 | I104: 6052.604466 | J104: 14142.96433 | K104: 333.4476335 | L104: -13809.51669
A105: 53 | B105: 62.55314553 | C105: -151.1246318 | D105: -1746.886897 | E105: 464.3083628 | F105: =Q_d!$C$11 -> 0 | G105: =Q_d!$C$12 -> 0 | H105: 11233.58983 | I105: 6052.604466 | J105: 14132.29739 | K105: 333.6260524 | L105: -13798.67134
A106: 53 | B106: 62.55070612 | C106: -151.1521574 | D106: -1748.215803 | E106: 464.8428889 | F106: =Q_d!$C$11 -> 0 | G106: =Q_d!$C$12 -> 0 | H106: 11233.58983 | I106: 6052.604466 | J106: 14133.30665 | K106: 333.6537302 | L106: -13799.65292
A107: 53 | B107: 62.55314552 | C107: -151.1282724 | D107: -1747.043298 | E107: 464.4090934 | F107: =Q_d!$C$11 -> 0 | G107: =Q_d!$C$12 -> 0 | H107: 11233.58983 | I107: 6052.604466 | J107: 14132.40121 | K107: 333.6644293 | L107: -13798.73678
A108: 53 | B108: 62.55314552 | C108: -151.1322724 | D108: -1747.215135 | E108: 464.5197801 | F108: =Q_d!$C$11 -> 0 | G108: =Q_d!$C$12 -> 0 | H108: 11233.58983 | I108: 6052.604466 | J108: 14132.51528 | K108: 333.7059805 | L108: -13798.8093
A109: 53 | B109: 62.524267 | C109: -151.3981084 | D109: -1760.364605 | E109: 469.2161155 | F109: =Q_d!$C$11 -> 0 | G109: =Q_d!$C$12 -> 0 | H109: 11233.58983 | I109: 6052.604466 | J109: 14142.73939 | K109: 333.7097889 | L109: -13809.0296
A110: 53 | B110: 62.55314552 | C110: -151.1362724 | D110: -1747.386964 | E110: 464.6304778 | F110: =Q_d!$C$11 -> 0 | G110: =Q_d!$C$12 -> 0 | H110: 11233.58983 | I110: 6052.604466 | J110: 14132.62933 | K110: 333.7485861 | L110: -13798.88075
A111: 53 | B111: 62.55314552 | C111: -151.1402724 | D111: -1747.558787 | E111: 464.7411863 | F111: =Q_d!$C$11 -> 0 | G111: =Q_d!$C$12 -> 0 | H111: 11233.58983 | I111: 6052.604466 | J111: 14132.74338 | K111: 333.7916666 | L111: -13798.95172
A112: 53 | B112: 62.55314552 | C112: -151.1441677 | D112: -1747.726104 | E112: 464.8490071 | F112: =Q_d!$C$11 -> 0 | G112: =Q_d!$C$12 -> 0 | H112: 11233.58983 | I112: 6052.604466 | J112: 14132.85444 | K112: 333.8331226 | L112: -13799.02131
A113: 53 | B113: 62.55314552 | C113: -151.1481677 | D113: -1747.897913 | E113: 464.959737 | F113: =Q_d!$C$11 -> 0 | G113: =Q_d!$C$12 -> 0 | H113: 11233.58983 | I113: 6052.604466 | J113: 14132.96847 | K113: 333.8755031 | L113: -13799.09296
A114: 53 | B114: 62.55314552 | C114: -151.1521677 | D114: -1748.069715 | E114: 465.0704779 | F114: =Q_d!$C$11 -> 0 | G114: =Q_d!$C$12 -> 0 | H114: 11233.58983 | I114: 6052.604466 | J114: 14133.08249 | K114: 333.9185847 | L114: -13799.16391
A115: 53 | B115: 62.55675593 | C115: -151.1168201 | D115: -1746.3346 | E115: 464.4287909 | F115: =Q_d!$C$11 -> 0 | G115: =Q_d!$C$12 -> 0 | H115: 11233.58983 | I115: 6052.604466 | J115: 14131.74248 | K115: 333.9354625 | L115: -13797.80702
A116: 53 | B116: 62.55667032 | C116: -151.1246411 | D116: -1746.675713 | E116: 464.6371547 | F116: =Q_d!$C$11 -> 0 | G116: =Q_d!$C$12 -> 0 | H116: 11233.58983 | I116: 6052.604466 | J116: 14131.9734 | K116: 334.0086956 | L116: -13797.96471
A117: 53 | B117: 62.55675614 | C117: -151.1246413 | D117: -1746.670571 | E117: 464.6451596 | F117: =Q_d!$C$11 -> 0 | G117: =Q_d!$C$12 -> 0 | H117: 11233.58983 | I117: 6052.604466 | J117: 14131.96552 | K117: 334.0179535 | L117: -13797.94756
A118: 53 | B118: 62.528267 | C118: -151.3981084 | D118: -1760.122881 | E118: 469.5879083 | F118: =Q_d!$C$11 -> 0 | G118: =Q_d!$C$12 -> 0 | H118: 11233.58983 | I118: 6052.604466 | J118: 14142.37052 | K118: 334.1383122 | L118: -13808.23221
A119: 53 | B119: 62.56036508 | C119: -151.1090064 | D119: -1745.782354 | E119: 464.5491437 | F119: =Q_d!$C$11 -> 0 | G119: =Q_d!$C$12 -> 0 | H119: 11233.58983 | I119: 6052.604466 | J119: 14131.18766 | K119: 334.2464741 | L119: -13796.94118
A120: 53 | B120: 62.56036571 | C120: -151.1168286 | D120: =lcpx(B120,C120,63,-115,70,60) -> -1746.118325 | E120: =lcpy(B120,C120,63,-115,70,60) -> 464.7655097 | F120: =Q_d!$C$11 -> 0 | G120: =Q_d!$C$12 -> 0 | H120: =lcpx(F120,G120,63,-115,70,60) -> 11233.58983 | I120: =lcpy(F120,G120,63,-115,70,60) -> 6052.604466 | J120: =SQRT((H120-D120)^2+(I120-E120)^2) -> 14131.41069 | K120: 334.3274786 | L120: -13797.08321
A121: 53 | B121: 62.532267 | C121: -151.3981084 | D121: -1759.881157 | E121: 469.9597001 | F121: =Q_d!$C$11 -> 0 | G121: =Q_d!$C$12 -> 0 | H121: 11233.58983 | I121: 6052.604466 | J121: 14142.00166 | K121: 334.5675046 | L121: -13807.43415
A122: 53 | B122: 62.56358467 | C122: -151.1090132 | D122: -1745.589459 | E122: 464.8494654 | F122: =Q_d!$C$11 -> 0 | G122: =Q_d!$C$12 -> 0 | H122: 11233.58983 | I122: 6052.604466 | J122: 14130.89173 | K122: 334.5958074 | L122: -13796.29592
A123: 53 | B123: 62.56397486 | C123: -151.109014 | D123: -1745.566081 | E123: 464.8858628 | F123: =Q_d!$C$11 -> 0 | G123: =Q_d!$C$12 -> 0 | H123: 11233.58983 | I123: 6052.604466 | J123: 14130.85586 | K123: 334.6376709 | L123: -13796.21819
A124: 53 | B124: 62.56758466 | C124: -151.0933734 | D124: -1744.677711 | E124: 464.7900958 | F124: =Q_d!$C$11 -> 0 | G124: =Q_d!$C$12 -> 0 | H124: 11233.58983 | I124: 6052.604466 | J124: 14130.07777 | K124: 334.8699215 | L124: -13795.20785
A125: 53 | B125: 62.56758466 | C125: -151.0937253 | D125: -1744.692825 | E125: 464.7998183 | F125: =Q_d!$C$11 -> 0 | G125: =Q_d!$C$12 -> 0 | H125: 11233.58983 | I125: 6052.604466 | J125: 14130.08781 | K125: 334.8728795 | L125: -13795.21493
A126: 53 | B126: 62.56758466 | C126: -151.0977253 | D126: -1744.864637 | E126: 464.9103561 | F126: =Q_d!$C$11 -> 0 | G126: =Q_d!$C$12 -> 0 | H126: 11233.58983 | I126: 6052.604466 | J126: 14130.20191 | K126: 334.9141338 | L126: -13795.28777
A127: 53 | B127: 62.56758466 | C127: -151.1017253 | D127: -1745.036442 | E127: 465.0209048 | F127: =Q_d!$C$11 -> 0 | G127: =Q_d!$C$12 -> 0 | H127: 11233.58983 | I127: 6052.604466 | J127: 14130.31599 | K127: 334.9545755 | L127: -13795.36142
A128: 53 | B128: 62.56758466 | C128: -151.1057253 | D128: -1745.208239 | E128: 465.1314645 | F128: =Q_d!$C$11 -> 0 | G128: =Q_d!$C$12 -> 0 | H128: 11233.58983 | I128: 6052.604466 | J128: 14130.43007 | K128: 334.9960696 | L128: -13795.434
A129: 53 | B129: 62.536267 | C129: -151.3981084 | D129: -1759.639434 | E129: 470.3314906 | F129: =Q_d!$C$11 -> 0 | G129: =Q_d!$C$12 -> 0 | H129: 11233.58983 | I129: 6052.604466 | J129: 14141.6328 | K129: 334.9970508 | L129: -13806.63575
A130: 53 | B130: 62.56758466 | C130: -151.1090216 | D130: -1745.349808 | E130: 465.2225815 | F130: =Q_d!$C$11 -> 0 | G130: =Q_d!$C$12 -> 0 | H130: 11233.58983 | I130: 6052.604466 | J130: 14130.52407 | K130: 335.03018 | L130: -13795.49389
A131: 53 | B131: 62.53870619 | C131: -151.3981084 | D131: -1759.492032 | E131: 470.5582073 | F131: =Q_d!$C$11 -> 0 | G131: =Q_d!$C$12 -> 0 | H131: 11233.58983 | I131: 6052.604466 | J131: 14141.40788 | K131: 335.2589712 | L131: -13806.14891
A132: 53 | B132: 62.5748042 | C132: -151.0777329 | D132: -1743.572976 | E132: 465.0312105 | F132: =Q_d!$C$11 -> 0 | G132: =Q_d!$C$12 -> 0 | H132: 11233.58983 | I132: 6052.604466 | J132: 14128.96774 | K132: 335.4956583 | L132: =K132-J132 -> -13793.47208
A133: 53 | B133: 62.57558466 | C133: -151.0777337 | D133: -1743.526217 | E133: 465.1040111 | F133: =Q_d!$C$11 -> 0 | G133: =Q_d!$C$12 -> 0 | H133: 11233.58983 | I133: 6052.604466 | J133: 14128.896 | K133: 335.5807722 | L133: -13793.31523
A134: 53 | B134: 62.57480504 | C134: -151.0933848 | D134: -1744.245124 | E134: 465.4636065 | F134: =Q_d!$C$11 -> 0 | G134: =Q_d!$C$12 -> 0 | H134: 11233.58983 | I134: 6052.604466 | J134: 14129.41411 | K134: 335.6537179 | L134: -13793.76039
A135: 53 | B135: 62.54270619 | C135: -151.3981084 | D135: -1759.250311 | E135: 470.929996 | F135: =Q_d!$C$11 -> 0 | G135: =Q_d!$C$12 -> 0 | H135: 11233.58983 | I135: 6052.604466 | J135: 14141.03903 | K135: 335.6885768 | L135: -13805.35045
A136: 53 | B136: 62.57958465 | C136: -151.0777379 | D136: -1743.286573 | E136: 465.4771272 | F136: =Q_d!$C$11 -> 0 | G136: =Q_d!$C$12 -> 0 | H136: 11233.58983 | I136: 6052.604466 | J136: 14128.52834 | K136: 336.0156282 | L136: -13792.51271
A137: 53 | B137: 62.54670619 | C137: -151.3981084 | D137: -1759.00859 | E137: 471.3017837 | F137: =Q_d!$C$11 -> 0 | G137: =Q_d!$C$12 -> 0 | H137: 11233.58983 | I137: 6052.604466 | J137: 14140.67019 | K137: 336.1172713 | L137: -13804.55292
A138: 53 | B138: 62.58202376 | C138: -151.0777405 | D138: -1743.140443 | E138: 465.7046442 | F138: =Q_d!$C$11 -> 0 | G138: =Q_d!$C$12 -> 0 | H138: 11233.58983 | I138: 6052.604466 | J138: 14128.30415 | K138: 336.2802619 | L138: -13792.02389
A139: 53 | B139: 62.58563436 | C139: -151.0620867 | D139: -1742.251828 | E139: 465.6092894 | F139: =Q_d!$C$11 -> 0 | G139: =Q_d!$C$12 -> 0 | H139: 11233.58983 | I139: 6052.604466 | J139: 14127.52568 | K139: 336.5175567 | L139: -13791.00813
A140: 53 | B140: 62.58446284 | C140: -151.0777431 | D140: -1742.994316 | E140: 465.9321581 | F140: =Q_d!$C$11 -> 0 | G140: =Q_d!$C$12 -> 0 | H140: 11233.58983 | I140: 6052.604466 | J140: 14128.07997 | K140: 336.545835 | L140: -13791.53413
A141: 53 | B141: 62.55070619 | C141: -151.3981084 | D141: -1758.766869 | E141: 471.6735702 | F141: =Q_d!$C$11 -> 0 | G141: =Q_d!$C$12 -> 0 | H141: 11233.58983 | I141: 6052.604466 | J141: 14140.30135 | K141: 336.5469506 | L141: -13803.7544
A142: 53 | B142: 62.58563352 | C142: -151.0777443 | D142: -1742.924179 | E142: 466.0413574 | F142: =Q_d!$C$11 -> 0 | G142: =Q_d!$C$12 -> 0 | H142: 11233.58983 | I142: 6052.604466 | J142: 14127.97237 | K142: 336.6728742 | L142: -13791.2995
A143: 53 | B143: 62.55314548 | C143: -151.3981084 | D143: -1758.619463 | E143: 471.9002935 | F143: =Q_d!$C$11 -> 0 | G143: =Q_d!$C$12 -> 0 | H143: 11233.58983 | I143: 6052.604466 | J143: 14140.07643 | K143: 336.8089512 | L143: -13803.26748
A144: 53 | B144: 62.58924392 | C144: -151.0542588 | D144: -1741.69939 | E144: 465.7299735 | F144: =Q_d!$C$11 -> 0 | G144: =Q_d!$C$12 -> 0 | H144: 11233.58983 | I144: 6052.604466 | J144: 14126.97055 | K144: 336.8332996 | L144: -13790.13725
A145: 53 | B145: 62.55314548 | C145: -151.4021084 | D145: -1758.790825 | E145: 472.0117136 | F145: =Q_d!$C$11 -> 0 | G145: =Q_d!$C$12 -> 0 | H145: 11233.58983 | I145: 6052.604466 | J145: 14140.18991 | K145: 336.8597376 | L145: -13803.33017
A146: 53 | B146: 62.58923917 | C146: -151.0620886 | D146: -1742.035864 | E146: 465.945541 | F146: =Q_d!$C$11 -> 0 | G146: =Q_d!$C$12 -> 0 | H146: 11233.58983 | I146: 6052.604466 | J146: 14127.19435 | K146: 336.9094374 | L146: -13790.28491
A147: 53 | B147: 62.55314548 | C147: -151.4061084 | D147: -1758.96218 | E147: 472.1231445 | F147: =Q_d!$C$11 -> 0 | G147: =Q_d!$C$12 -> 0 | H147: 11233.58983 | I147: 6052.604466 | J147: 14140.30338 | K147: 336.9112704 | L147: -13803.39211
A148: 53 | B148: 62.55314548 | C148: -151.4101084 | D148: -1759.133528 | E148: 472.2345864 | F148: =Q_d!$C$11 -> 0 | G148: =Q_d!$C$12 -> 0 | H148: 11233.58983 | I148: 6052.604466 | J148: 14140.41684 | K148: 336.9622889 | L148: -13803.45455
A149: 53 | B149: 62.55314547 | C149: -151.4141084 | D149: -1759.304868 | E149: 472.346039 | F149: =Q_d!$C$11 -> 0 | G149: =Q_d!$C$12 -> 0 | H149: 11233.58983 | I149: 6052.604466 | J149: 14140.53029 | K149: 337.0143716 | L149: -13803.51592
A150: 53 | B150: 62.55314547 | C150: -151.4181084 | D150: -1759.476202 | E150: 472.4575026 | F150: =Q_d!$C$11 -> 0 | G150: =Q_d!$C$12 -> 0 | H150: 11233.58983 | I150: 6052.604466 | J150: 14140.64373 | K150: 337.0653056 | L150: -13803.57842
A151: 53 | B151: 62.55314547 | C151: -151.4218023 | D151: -1759.634417 | E151: 472.5604458 | F151: =Q_d!$C$11 -> 0 | G151: =Q_d!$C$12 -> 0 | H151: 11233.58983 | I151: 6052.604466 | J151: 14140.74848 | K151: 337.1131786 | L151: -13803.63531
A152: 53 | B152: 62.59285306 | C152: -151.046429 | D152: -1741.146952 | E152: 465.8506609 | F152: =Q_d!$C$11 -> 0 | G152: =Q_d!$C$12 -> 0 | H152: 11233.58983 | I152: 6052.604466 | J152: 14126.41542 | K152: 337.1491351 | L152: -13789.26629
A153: 53 | B153: 62.55314547 | C153: -151.4253896 | D153: -1759.788059 | E153: 472.6604254 | F153: =Q_d!$C$11 -> 0 | G153: =Q_d!$C$12 -> 0 | H153: 11233.58983 | I153: 6052.604466 | J153: 14140.85021 | K153: 337.1595622 | L153: -13803.69064
A154: 53 | B154: 62.55314547 | C154: -151.4293896 | D154: -1759.959372 | E154: 472.7719195 | F154: =Q_d!$C$11 -> 0 | G154: =Q_d!$C$12 -> 0 | H154: 11233.58983 | I154: 6052.604466 | J154: 14140.96362 | K154: 337.2111388 | L154: -13803.75248
A155: 53 | B155: 62.59285369 | C155: -151.0542598 | D155: -1741.483129 | E155: 466.0666881 | F155: =Q_d!$C$11 -> 0 | G155: =Q_d!$C$12 -> 0 | H155: 11233.58983 | I155: 6052.604466 | J155: 14126.63876 | K155: 337.2252875 | L155: -13789.41347
A156: 53 | B156: 62.55314547 | C156: -151.4330835 | D156: -1760.11757 | E156: 472.8748909 | F156: =Q_d!$C$11 -> 0 | G156: =Q_d!$C$12 -> 0 | H156: 11233.58983 | I156: 6052.604466 | J156: 14141.06835 | K156: 337.2593133 | L156: -13803.80904
A157: 53 | B157: 62.59402377 | C157: -151.046429 | D157: -1741.076815 | E157: 465.9598631 | F157: =Q_d!$C$11 -> 0 | G157: =Q_d!$C$12 -> 0 | H157: 11233.58983 | I157: 6052.604466 | J157: 14126.30782 | K157: 337.2763041 | L157: -13789.03151
A158: 53 | B158: 62.55314547 | C158: -151.4370835 | D158: -1760.28887 | E158: 472.9864059 | F158: =Q_d!$C$11 -> 0 | G158: =Q_d!$C$12 -> 0 | H158: 11233.58983 | I158: 6052.604466 | J158: 14141.18175 | K158: 337.3120615 | L158: -13803.86969
A159: 53 | B159: 62.55314547 | C159: -151.4410835 | D159: -1760.460163 | E159: 473.0979318 | F159: =Q_d!$C$11 -> 0 | G159: =Q_d!$C$12 -> 0 | H159: 11233.58983 | I159: 6052.604466 | J159: 14141.29515 | K159: 337.3636627 | L159: -13803.93148
A160: 53 | B160: 62.6397801 | C160: -150.2956821 | D160: -1706.030616 | E160: 449.7498157 | F160: =Q_d!$C$11 -> 0 | G160: =Q_d!$C$12 -> 0 | H160: 11233.58983 | I160: 6052.604466 | J160: 14100.55877 | K160: 337.4024915 | L160: -13763.15628
A161: 53 | B161: 62.6397801 | C161: -150.2990545 | D161: -1706.176273 | E161: 449.8409431 | F161: =Q_d!$C$11 -> 0 | G161: =Q_d!$C$12 -> 0 | H161: 11233.58983 | I161: 6052.604466 | J161: 14100.65622 | K161: 337.4134715 | L161: -13763.24275
A162: 53 | B162: 62.55314547 | C162: -151.4450835 | D162: -1760.631449 | E162: 473.2094685 | F162: =Q_d!$C$11 -> 0 | G162: =Q_d!$C$12 -> 0 | H162: 11233.58983 | I162: 6052.604466 | J162: 14141.40853 | K162: 337.4166425 | L162: -13803.99189
A163: 53 | B163: 62.6397801 | C163: -150.3030545 | D163: -1706.349033 | E163: 449.9490408 | F163: =Q_d!$C$11 -> 0 | G163: =Q_d!$C$12 -> 0 | H163: 11233.58983 | I163: 6052.604466 | J163: 14100.77181 | K163: 337.4276271 | L163: -13763.34418
A164: 53 | B164: 62.63978009 | C164: -150.3070545 | D164: -1706.521785 | E164: 450.0571494 | F164: =Q_d!$C$11 -> 0 | G164: =Q_d!$C$12 -> 0 | H164: 11233.58983 | I164: 6052.604466 | J164: 14100.88739 | K164: 337.4414971 | L164: -13763.44589
A165: 53 | B165: 62.63978009 | C165: -150.3110545 | D165: -1706.694531 | E165: 450.1652689 | F165: =Q_d!$C$11 -> 0 | G165: =Q_d!$C$12 -> 0 | H165: 11233.58983 | I165: 6052.604466 | J165: 14101.00296 | K165: 337.4550169 | L165: -13763.54794
A166: 53 | B166: 62.63978009 | C166: -150.3150545 | D166: -1706.86727 | E166: 450.2733995 | F166: =Q_d!$C$11 -> 0 | G166: =Q_d!$C$12 -> 0 | H166: 11233.58983 | I166: 6052.604466 | J166: 14101.11852 | K166: 337.4686593 | L166: -13763.64986
A167: 53 | B167: 62.55314547 | C167: -151.4490835 | D167: -1760.802728 | E167: 473.321016 | F167: =Q_d!$C$11 -> 0 | G167: =Q_d!$C$12 -> 0 | H167: 11233.58983 | I167: 6052.604466 | J167: 14141.52191 | K167: 337.4697377 | L167: -13804.05217
A168: 53 | B168: 62.63978009 | C168: -150.3190545 | D168: -1707.040002 | E168: 450.3815409 | F168: =Q_d!$C$11 -> 0 | G168: =Q_d!$C$12 -> 0 | H168: 11233.58983 | I168: 6052.604466 | J168: 14101.23407 | K168: 337.4824245 | L168: -13763.75164
A169: 53 | B169: 62.63978009 | C169: -150.3230545 | D169: -1707.212727 | E169: 450.4896934 | F169: =Q_d!$C$11 -> 0 | G169: =Q_d!$C$12 -> 0 | H169: 11233.58983 | I169: 6052.604466 | J169: 14101.34961 | K169: 337.4967826 | L169: -13763.85283
A170: 53 | B170: 62.63978009 | C170: -150.3270545 | D170: -1707.385446 | E170: 450.5978567 | F170: =Q_d!$C$11 -> 0 | G170: =Q_d!$C$12 -> 0 | H170: 11233.58983 | I170: 6052.604466 | J170: 14101.46514 | K170: 337.5107926 | L170: -13763.95435
A171: 53 | B171: 62.55314547 | C171: -151.4530835 | D171: -1760.973999 | E171: 473.4325745 | F171: =Q_d!$C$11 -> 0 | G171: =Q_d!$C$12 -> 0 | H171: 11233.58983 | I171: 6052.604466 | J171: 14141.63527 | K171: 337.521687 | L171: -13804.11359
A172: 53 | B172: 62.63978009 | C172: -150.3304269 | D172: -1707.531057 | E172: 450.6890566 | F172: =Q_d!$C$11 -> 0 | G172: =Q_d!$C$12 -> 0 | H172: 11233.58983 | I172: 6052.604466 | J172: 14101.56254 | K172: 337.5234669 | L172: -13764.03908
A173: 53 | B173: 62.63978009 | C173: -150.3344269 | D173: -1707.703763 | E173: 450.7972401 | F173: =Q_d!$C$11 -> 0 | G173: =Q_d!$C$12 -> 0 | H173: 11233.58983 | I173: 6052.604466 | J173: 14101.67806 | K173: 337.538172 | L173: -13764.13989
A174: 53 | B174: 62.59646284 | C174: -151.046429 | D174: -1740.930692 | E174: 466.1873758 | F174: =Q_d!$C$11 -> 0 | G174: =Q_d!$C$12 -> 0 | H174: 11233.58983 | I174: 6052.604466 | J174: 14126.08363 | K174: 337.5421584 | L174: -13788.54147
A175: 53 | B175: 62.63978009 | C175: -150.3384269 | D175: -1707.876462 | E175: 450.9054346 | F175: =Q_d!$C$11 -> 0 | G175: =Q_d!$C$12 -> 0 | H175: 11233.58983 | I175: 6052.604466 | J175: 14101.79357 | K175: 337.5525304 | L175: -13764.24104
A176: 53 | B176: 62.63978009 | C176: -150.3424269 | D176: -1708.049154 | E176: 451.0136401 | F176: =Q_d!$C$11 -> 0 | G176: =Q_d!$C$12 -> 0 | H176: 11233.58983 | I176: 6052.604466 | J176: 14101.90907 | K176: 337.5670115 | L176: -13764.34206
A177: 53 | B177: 62.55314547 | C177: -151.4566707 | D177: -1761.127591 | E177: 473.5326301 | F177: =Q_d!$C$11 -> 0 | G177: =Q_d!$C$12 -> 0 | H177: 11233.58983 | I177: 6052.604466 | J177: 14141.73693 | K177: 337.5691945 | L177: -13804.16774
A178: 53 | B178: 62.63978009 | C178: -150.3464269 | D178: -1708.221839 | E178: 451.1218564 | F178: =Q_d!$C$11 -> 0 | G178: =Q_d!$C$12 -> 0 | H178: 11233.58983 | I178: 6052.604466 | J178: 14102.02456 | K178: 337.5820823 | L178: -13764.44248
A179: 53 | B179: 62.63978009 | C179: -150.3504269 | D179: -1708.394518 | E179: 451.2300837 | F179: =Q_d!$C$11 -> 0 | G179: =Q_d!$C$12 -> 0 | H179: 11233.58983 | I179: 6052.604466 | J179: 14102.14005 | K179: 337.5976924 | L179: -13764.54235
A180: 53 | B180: 62.63978009 | C180: -150.3544269 | D180: -1708.567189 | E180: 451.3383218 | F180: =Q_d!$C$11 -> 0 | G180: =Q_d!$C$12 -> 0 | H180: 11233.58983 | I180: 6052.604466 | J180: 14102.25552 | K180: 337.6125409 | L180: -13764.64298
A181: 53 | B181: 62.55314547 | C181: -151.4606707 | D181: -1761.29885 | E181: 473.6442092 | F181: =Q_d!$C$11 -> 0 | G181: =Q_d!$C$12 -> 0 | H181: 11233.58983 | I181: 6052.604466 | J181: 14141.85028 | K181: 337.6226241 | L181: -13804.22766
A182: 53 | B182: 62.63978009 | C182: -150.3584269 | D182: -1708.739854 | E182: 451.446571 | F182: =Q_d!$C$11 -> 0 | G182: =Q_d!$C$12 -> 0 | H182: 11233.58983 | I182: 6052.604466 | J182: 14102.37099 | K182: 337.6279775 | L182: -13764.74301
A183: 53 | B183: 62.63978009 | C183: -150.3617992 | D183: -1708.88542 | E183: 451.5378432 | F183: =Q_d!$C$11 -> 0 | G183: =Q_d!$C$12 -> 0 | H183: 11233.58983 | I183: 6052.604466 | J183: 14102.46833 | K183: 337.640579 | L183: -13764.82775
A184: 53 | B184: 62.63978008 | C184: -150.3657992 | D184: =lcpx(B184,C184,63,-115,70,60) -> -1709.058072 | E184: =lcpy(B184,C184,63,-115,70,60) -> 451.6461125 | F184: =Q_d!$C$11 -> 0 | G184: =Q_d!$C$12 -> 0 | H184: =lcpx(F184,G184,63,-115,70,60) -> 11233.58983 | I184: =lcpy(F184,G184,63,-115,70,60) -> 6052.604466 | J184: =SQRT((H184-D184)^2+(I184-E184)^2) -> 14102.58378 | K184: 337.6566609 | L184: -13764.92712
A185: 53 | B185: 62.55314547 | C185: -151.4643646 | D185: -1761.456996 | E185: 473.7472589 | F185: =Q_d!$C$11 -> 0 | G185: =Q_d!$C$12 -> 0 | H185: 11233.58983 | I185: 6052.604466 | J185: 14141.95495 | K185: 337.6713233 | L185: -13804.28363
A186: 53 | B186: 62.63978008 | C186: -150.3697992 | D186: -1709.230717 | E186: 451.7543928 | F186: =Q_d!$C$11 -> 0 | G186: =Q_d!$C$12 -> 0 | H186: 11233.58983 | I186: 6052.604466 | J186: 14102.69922 | K186: 337.6724441 | L186: -13765.02678
A187: 53 | B187: 62.63978008 | C187: -150.3737992 | D187: -1709.403355 | E187: 451.8626841 | F187: =Q_d!$C$11 -> 0 | G187: =Q_d!$C$12 -> 0 | H187: 11233.58983 | I187: 6052.604466 | J187: 14102.81465 | K187: 337.6878852 | L187: -13765.12677
A188: 53 | B188: 62.63978008 | C188: -150.3777992 | D188: -1709.575987 | E188: 451.9709861 | F188: =Q_d!$C$11 -> 0 | G188: =Q_d!$C$12 -> 0 | H188: 11233.58983 | I188: 6052.604466 | J188: 14102.93008 | K188: 337.7043351 | L188: -13765.22574
A189: 53 | B189: 62.63978008 | C189: -150.3817992 | D189: -1709.748611 | E189: 452.0792992 | F189: =Q_d!$C$11 -> 0 | G189: =Q_d!$C$12 -> 0 | H189: 11233.58983 | I189: 6052.604466 | J189: 14103.04549 | K189: 337.7204838 | L189: -13765.32501
A190: 53 | B190: 62.55314547 | C190: -151.4683646 | D190: -1761.628241 | E190: 473.8588588 | F190: =Q_d!$C$11 -> 0 | G190: =Q_d!$C$12 -> 0 | H190: 11233.58983 | I190: 6052.604466 | J190: 14142.06828 | K190: 337.7240241 | L190: -13804.34426
A191: 53 | B191: 62.63978008 | C191: -150.3857992 | D191: -1709.921229 | E191: 452.1876232 | F191: =Q_d!$C$11 -> 0 | G191: =Q_d!$C$12 -> 0 | H191: 11233.58983 | I191: 6052.604466 | J191: 14103.1609 | K191: 337.736292 | L191: -13765.42461
A192: 53 | B192: 62.63978008 | C192: -150.3897992 | D192: -1710.09384 | E192: 452.2959582 | F192: =Q_d!$C$11 -> 0 | G192: =Q_d!$C$12 -> 0 | H192: 11233.58983 | I192: 6052.604466 | J192: 14103.2763 | K192: 337.752684 | L192: -13765.52362
A193: 53 | B193: 62.63978008 | C193: -150.3931716 | D193: -1710.23936 | E193: 452.3873026 | F193: =Q_d!$C$11 -> 0 | G193: =Q_d!$C$12 -> 0 | H193: 11233.58983 | I193: 6052.604466 | J193: 14103.37358 | K193: 337.7669822 | L193: -13765.6066
A194: 53 | B194: 62.55314546 | C194: -151.4723646 | D194: -1761.799478 | E194: 473.9704695 | F194: =Q_d!$C$11 -> 0 | G194: =Q_d!$C$12 -> 0 | H194: 11233.58983 | I194: 6052.604466 | J194: 14142.18161 | K194: 337.7777909 | L194: -13804.40382
A195: 53 | B195: 62.63978008 | C195: -150.3971716 | D195: -1710.411959 | E195: 452.4956577 | F195: =Q_d!$C$11 -> 0 | G195: =Q_d!$C$12 -> 0 | H195: 11233.58983 | I195: 6052.604466 | J195: 14103.48897 | K195: 337.7835986 | L195: -13765.70537
A196: 53 | B196: 62.63978008 | C196: -150.4011716 | D196: -1710.58455 | E196: 452.6040239 | F196: =Q_d!$C$11 -> 0 | G196: =Q_d!$C$12 -> 0 | H196: 11233.58983 | I196: 6052.604466 | J196: 14103.60434 | K196: 337.8007643 | L196: =K196-J196 -> -13765.80358
A197: 53 | B197: 62.63978008 | C197: -150.4051716 | D197: -1710.757134 | E197: 452.7124008 | F197: =Q_d!$C$11 -> 0 | G197: =Q_d!$C$12 -> 0 | H197: 11233.58983 | I197: 6052.604466 | J197: 14103.71971 | K197: 337.8171647 | L197: -13765.90254
A198: 53 | B198: 62.55314546 | C198: -151.4763646 | D198: -1761.970709 | E198: 474.0820911 | F198: =Q_d!$C$11 -> 0 | G198: =Q_d!$C$12 -> 0 | H198: 11233.58983 | I198: 6052.604466 | J198: 14142.29492 | K198: 337.8316729 | L198: -13804.46325
A199: 53 | B199: 62.63978008 | C199: -150.4091716 | D199: -1710.929712 | E199: 452.8207887 | F199: =Q_d!$C$11 -> 0 | G199: =Q_d!$C$12 -> 0 | H199: 11233.58983 | I199: 6052.604466 | J199: 14103.83506 | K199: 337.8341462 | L199: -13766.00092
A200: 53 | B200: 62.6437801 | C200: -150.2956822 | D200: -1705.79544 | E200: 450.1257397 | F200: =Q_d!$C$11 -> 0 | G200: =Q_d!$C$12 -> 0 | H200: 11233.58983 | I200: 6052.604466 | J200: 14100.19358 | K200: 337.8449579 | L200: -13762.34863
... 4300 more rows

Sheet TUXE_distance (hidden)
A1: TUXE
A2: Boundary_pt | B2: Lat | C2: Lon | D2: lcpx | E2: lcpy | F2: facility_lat | G2: facility_lon | H2: facility_x | I2: facility_y | J2: distance
A3: 1 | B3: 60.15073142 | C3: -152.5476297 | D3: =lcpx(B3,C3,63,-115,70,60) -> -1956.966586 | E3: =lcpy(B3,C3,63,-115,70,60) -> 283.4903076 | F3: =Q_d!$C$11 -> 0 | G3: =Q_d!$C$12 -> 0 | H3: =lcpx(F3,G3,63,-115,70,60) -> 11233.58983 | I3: =lcpy(F3,G3,63,-115,70,60) -> 6052.604466 | J3: =SQRT((H3-D3)^2+(I3-E3)^2) -> 14396.99471
A4: 2 | B4: 60.1503118 | C4: -152.5486063 | D4: =lcpx(B4,C4,63,-115,70,60) -> -1957.037469 | E4: =lcpy(B4,C4,63,-115,70,60) -> 283.4819425 | F4: =Q_d!$C$11 -> 0 | G4: =Q_d!$C$12 -> 0 | H4: =lcpx(F4,G4,63,-115,70,60) -> 11233.58983 | I4: =lcpy(F4,G4,63,-115,70,60) -> 6052.604466 | J4: =SQRT((H4-D4)^2+(I4-E4)^2) -> 14397.06301
A5: 3 | B5: 60.15034613 | C5: -152.5495218 | D5: -1957.077286 | E5: 283.5134819 | F5: =Q_d!$C$11 -> 0 | G5: =Q_d!$C$12 -> 0 | H5: 11233.58983 | I5: 6052.604466 | J5: 14397.08685
A6: 4 | B6: 60.149896 | C6: -152.5495981 | D6: -1957.108815 | E6: 283.4744033 | F6: =Q_d!$C$11 -> 0 | G6: =Q_d!$C$12 -> 0 | H6: 11233.58983 | I6: 6052.604466 | J6: 14397.1314
A7: 5 | B7: 60.14947638 | C7: -152.5505746 | D7: -1957.1797 | E7: 283.4660413 | F7: =Q_d!$C$11 -> 0 | G7: =Q_d!$C$12 -> 0 | H7: 11233.58983 | I7: 6052.604466 | J7: 14397.19969
A8: 6 | B8: 60.1490911 | C8: -152.552482 | D8: -1957.291101 | E8: 283.4896961 | F8: =Q_d!$C$11 -> 0 | G8: =Q_d!$C$12 -> 0 | H8: 11233.58983 | I8: 6052.604466 | J8: 14397.29228
A9: 7 | B9: 60.14922461 | C9: -152.5561441 | D9: -1957.450599 | E9: 283.6155192 | F9: =Q_d!$C$11 -> 0 | G9: =Q_d!$C$12 -> 0 | H9: 11233.58983 | I9: 6052.604466 | J9: 14397.388
A10: 8 | B10: 60.14925894 | C10: -152.5570596 | D10: -1957.490413 | E10: 283.647064 | F10: =Q_d!$C$11 -> 0 | G10: =Q_d!$C$12 -> 0 | H10: 11233.58983 | I10: 6052.604466 | J10: 14397.41184
A11: 9 | B11: 60.14887366 | C11: -152.5589517 | D11: -1957.601113 | E11: 283.6702575 | F11: =Q_d!$C$11 -> 0 | G11: =Q_d!$C$12 -> 0 | H11: 11233.58983 | I11: 6052.604466 | J11: 14397.50397
A12: 10 | B12: 60.14981589 | C12: -152.5597299 | D12: -1957.578078 | E12: 283.7811267 | F12: =Q_d!$C$11 -> 0 | G12: =Q_d!$C$12 -> 0 | H12: 11233.58983 | I12: 6052.604466 | J12: 14397.43844
A13: 11 | B13: 60.15030035 | C13: -152.5605844 | D13: -1957.587053 | E13: 283.8522194 | F13: =Q_d!$C$11 -> 0 | G13: =Q_d!$C$12 -> 0 | H13: 11233.58983 | I13: 6052.604466 | J13: 14397.41817
A14: 12 | B14: 60.15078482 | C14: -152.5614236 | D14: -1957.595326 | E14: 283.9228387 | F14: =Q_d!$C$11 -> 0 | G14: =Q_d!$C$12 -> 0 | H14: 11233.58983 | I14: 6052.604466 | J14: 14397.39746
A15: 13 | B15: 60.15172705 | C15: -152.5622018 | D15: -1957.572286 | E15: 284.0337052 | F15: =Q_d!$C$11 -> 0 | G15: =Q_d!$C$12 -> 0 | H15: 11233.58983 | I15: 6052.604466 | J15: 14397.33193
A16: 14 | B16: 60.152078 | C16: -152.5593942 | D16: -1957.421786 | E16: 283.9789669 | F16: =Q_d!$C$11 -> 0 | G16: =Q_d!$C$12 -> 0 | H16: 11233.58983 | I16: 6052.604466 | J16: 14397.21597
A17: 15 | B17: 60.1542066 | C17: -152.5553964 | D17: -1957.106031 | E17: 284.0509962 | F17: =Q_d!$C$11 -> 0 | G17: =Q_d!$C$12 -> 0 | H17: 11233.58983 | I17: 6052.604466 | J17: 14396.89781
A18: 16 | B18: 60.15501151 | C18: -152.5524972 | D18: -1956.923069 | E18: 284.0352362 | F18: =Q_d!$C$11 -> 0 | G18: =Q_d!$C$12 -> 0 | H18: 11233.58983 | I18: 6052.604466 | J18: 14396.73649
A19: 17 | B19: 60.15449271 | C19: -152.5507425 | D19: -1956.874981 | E19: 283.9330851 | F19: =Q_d!$C$11 -> 0 | G19: =Q_d!$C$12 -> 0 | H19: 11233.58983 | I19: 6052.604466 | J19: 14396.73336
A20: 18 | B20: 60.15355048 | C20: -152.5499643 | D20: -1956.898005 | E20: 283.8222167 | F20: =Q_d!$C$11 -> 0 | G20: =Q_d!$C$12 -> 0 | H20: 11233.58983 | I20: 6052.604466 | J20: 14396.79888
A21: 19 | B21: 60.15257773 | C21: -152.5482706 | D21: -1956.880975 | E21: 283.6801616 | F21: =Q_d!$C$11 -> 0 | G21: =Q_d!$C$12 -> 0 | H21: 11233.58983 | I21: 6052.604466 | J21: 14396.8402
A22: 20 | B22: 60.15212378 | C22: -152.5483316 | D22: -1956.912041 | E22: 283.6402584 | F22: =Q_d!$C$11 -> 0 | G22: =Q_d!$C$12 -> 0 | H22: 11233.58983 | I22: 6052.604466 | J22: 14396.88465
A23: 21 | B23: 60.15118537 | C23: -152.5475534 | D23: -1956.934821 | E23: 283.5297383 | F23: =Q_d!$C$11 -> 0 | G23: =Q_d!$C$12 -> 0 | H23: 11233.58983 | I23: 6052.604466 | J23: 14396.94981
A24: 22 | B24: 60.15073142 | C24: -152.5476297 | D24: -1956.966586 | E24: 283.4903076 | F24: =Q_d!$C$11 -> 0 | G24: =Q_d!$C$12 -> 0 | H24: 11233.58983 | I24: 6052.604466 | J24: 14396.99471
A25: 23 | B25: 60.096845 | C25: -152.5686105 | D25: -1961.28545 | E25: 279.1803363 | F25: =Q_d!$C$11 -> 0 | G25: =Q_d!$C$12 -> 0 | H25: 11233.58983 | I25: 6052.604466 | J25: 14402.67891
A26: 24 | B26: 60.09600577 | C26: -152.5705636 | D26: -1961.42738 | E26: 279.1637529 | F26: =Q_d!$C$11 -> 0 | G26: =Q_d!$C$12 -> 0 | H26: 11233.58983 | I26: 6052.604466 | J26: 14402.81559
A27: 25 | B27: 60.09610877 | C27: -152.5732949 | D27: -1961.546311 | E27: 279.2580876 | F27: =Q_d!$C$11 -> 0 | G27: =Q_d!$C$12 -> 0 | H27: 11233.58983 | I27: 6052.604466 | J27: 14402.88673
A28: 26 | B28: 60.09617362 | C28: -152.575126 | D28: -1961.6263 | E28: 279.320945 | F28: =Q_d!$C$11 -> 0 | G28: =Q_d!$C$12 -> 0 | H28: 11233.58983 | I28: 6052.604466 | J28: 14402.93482
A29: 27 | B29: 60.09711584 | C29: -152.5759042 | D29: -1961.603293 | E29: 279.4318552 | F29: =Q_d!$C$11 -> 0 | G29: =Q_d!$C$12 -> 0 | H29: 11233.58983 | I29: 6052.604466 | J29: 14402.86928
A30: 28 | B30: 60.09944662 | C30: -152.5773843 | D30: -1961.525954 | E30: 279.6923848 | F30: =Q_d!$C$11 -> 0 | G30: =Q_d!$C$12 -> 0 | H30: 11233.58983 | I30: 6052.604466 | J30: 14402.694
A31: 29 | B31: 60.10174689 | C31: -152.5779641 | D31: -1961.409201 | E31: 279.9221319 | F31: =Q_d!$C$11 -> 0 | G31: =Q_d!$C$12 -> 0 | H31: 11233.58983 | I31: 6052.604466 | J31: 14402.49495
A32: 30 | B32: 60.10456595 | C32: -152.5802987 | D32: -1961.340614 | E32: 280.254139 | F32: =Q_d!$C$11 -> 0 | G32: =Q_d!$C$12 -> 0 | H32: 11233.58983 | I32: 6052.604466 | J32: 14402.29905
A33: 31 | B33: 60.10839209 | C33: -152.5852426 | D33: -1961.328921 | E33: 280.7598815 | F33: =Q_d!$C$11 -> 0 | G33: =Q_d!$C$12 -> 0 | H33: 11233.58983 | I33: 6052.604466 | J33: 14402.08564
A34: 32 | B34: 60.10936484 | C34: -152.5869363 | D34: -1961.345972 | E34: 280.902026 | F34: =Q_d!$C$11 -> 0 | G34: =Q_d!$C$12 -> 0 | H34: 11233.58983 | I34: 6052.604466 | J34: 14402.0443
A35: 33 | B35: 60.11186346 | C35: -152.592994 | D35: -1961.468036 | E35: 281.3201718 | F35: =Q_d!$C$11 -> 0 | G35: =Q_d!$C$12 -> 0 | H35: 11233.58983 | I35: 6052.604466 | J35: 14401.98856
A36: 34 | B36: 60.11241278 | C36: -152.5956796 | D36: -1961.556944 | E36: 281.4541575 | F36: =Q_d!$C$11 -> 0 | G36: =Q_d!$C$12 -> 0 | H36: 11233.58983 | I36: 6052.604466 | J36: 14402.01633
A37: 35 | B37: 60.11341986 | C37: -152.5982736 | D37: -1961.613104 | E37: 281.6274271 | F37: =Q_d!$C$11 -> 0 | G37: =Q_d!$C$12 -> 0 | H37: 11233.58983 | I37: 6052.604466 | J37: 14401.99835
A38: 36 | B38: 60.11435827 | C38: -152.5990518 | D38: -1961.590276 | E38: 281.7379625 | F38: =Q_d!$C$11 -> 0 | G38: =Q_d!$C$12 -> 0 | H38: 11233.58983 | I38: 6052.604466 | J38: 14401.93314
A39: 37 | B39: 60.11627325 | C39: -152.601539 | D39: -1961.584909 | E39: 281.9914579 | F39: =Q_d!$C$11 -> 0 | G39: =Q_d!$C$12 -> 0 | H39: 11233.58983 | I39: 6052.604466 | J39: 14401.82665
A40: 38 | B40: 60.11961111 | C40: -152.6056283 | D40: -1961.564244 | E40: 282.4256557 | F40: =Q_d!$C$11 -> 0 | G40: =Q_d!$C$12 -> 0 | H40: 11233.58983 | I40: 6052.604466 | J40: 14401.63375
A41: 39 | B41: 60.12434133 | C41: -152.6104501 | D41: -1961.490263 | E41: 283.0107067 | F41: =Q_d!$C$11 -> 0 | G41: =Q_d!$C$12 -> 0 | H41: 11233.58983 | I41: 6052.604466 | J41: 14401.33157
A42: 40 | B42: 60.12907156 | C42: -152.6152566 | D42: -1961.415507 | E42: 283.5952526 | F42: =Q_d!$C$11 -> 0 | G42: =Q_d!$C$12 -> 0 | H42: 11233.58983 | I42: 6052.604466 | J42: 14401.02889
A43: 41 | B43: 60.13432058 | C43: -152.6218332 | D43: -1961.389402 | E43: 284.2824826 | F43: =Q_d!$C$11 -> 0 | G43: =Q_d!$C$12 -> 0 | H43: 11233.58983 | I43: 6052.604466 | J43: 14400.72969
A44: 42 | B44: 60.1390508 | C44: -152.6266549 | D44: -1961.315174 | E44: 284.8674354 | F44: =Q_d!$C$11 -> 0 | G44: =Q_d!$C$12 -> 0 | H44: 11233.58983 | I44: 6052.604466 | J44: 14400.42738
A45: 43 | B45: 60.14715703 | C45: -152.6365121 | D45: -1961.260779 | E45: 285.9193179 | F45: =Q_d!$C$11 -> 0 | G45: =Q_d!$C$12 -> 0 | H45: 11233.58983 | I45: 6052.604466 | J45: 14399.95626
A46: 44 | B46: 60.15045674 | C46: -152.6397012 | D46: -1961.200864 | E46: 286.3218927 | F46: =Q_d!$C$11 -> 0 | G46: =Q_d!$C$12 -> 0 | H46: 11233.58983 | I46: 6052.604466 | J46: 14399.74015
A47: 45 | B47: 60.15198262 | C47: -152.6440805 | D47: -1961.306108 | E47: 286.598273 | F47: =Q_d!$C$11 -> 0 | G47: =Q_d!$C$12 -> 0 | H47: 11233.58983 | I47: 6052.604466 | J47: 14399.72591
A48: 46 | B48: 60.15765126 | C48: -152.6496957 | D48: -1961.209293 | E48: 287.2940571 | F48: =Q_d!$C$11 -> 0 | G48: =Q_d!$C$12 -> 0 | H48: 11233.58983 | I48: 6052.604466 | J48: 14399.3586
A49: 47 | B49: 60.16130955 | C49: -152.6500772 | D49: -1960.998389 | E49: 287.6423542 | F49: =Q_d!$C$11 -> 0 | G49: =Q_d!$C$12 -> 0 | H49: 11233.58983 | I49: 6052.604466 | J49: 14399.02589
A50: 48 | B50: 60.16412861 | C50: -152.6524271 | D50: -1960.929934 | E50: 287.9745972 | F50: =Q_d!$C$11 -> 0 | G50: =Q_d!$C$12 -> 0 | H50: 11233.58983 | I50: 6052.604466 | J50: 14398.83014
A51: 49 | B51: 60.16457875 | C51: -152.6523508 | D51: -1960.898343 | E51: 288.0136246 | F51: =Q_d!$C$11 -> 0 | G51: =Q_d!$C$12 -> 0 | H51: 11233.58983 | I51: 6052.604466 | J51: 14398.78557
A52: 50 | B52: 60.16545232 | C52: -152.6513132 | D52: -1960.796337 | E52: 288.0617386 | F52: =Q_d!$C$11 -> 0 | G52: =Q_d!$C$12 -> 0 | H52: 11233.58983 | I52: 6052.604466 | J52: 14398.67283
A53: 51 | B53: 60.16590626 | C53: -152.6512369 | D53: -1960.764509 | E53: 288.1011174 | F53: =Q_d!$C$11 -> 0 | G53: =Q_d!$C$12 -> 0 | H53: 11233.58983 | I53: 6052.604466 | J53: 14398.6279
A54: 52 | B54: 60.16681035 | C54: -152.6511148 | D54: -1960.702488 | E54: 288.1804718 | F54: =Q_d!$C$11 -> 0 | G54: =Q_d!$C$12 -> 0 | H54: 11233.58983 | I54: 6052.604466 | J54: 14398.53929
A55: 53 | B55: 60.16768391 | C55: -152.650062 | D55: -1960.599788 | E55: 288.2281161 | F55: =Q_d!$C$11 -> 0 | G55: =Q_d!$C$12 -> 0 | H55: 11233.58983 | I55: 6052.604466 | J55: 14398.42611
A56: 54 | B56: 60.1703008 | C56: -152.6469034 | D56: -1960.291941 | E56: 288.3707131 | F56: =Q_d!$C$11 -> 0 | G56: =Q_d!$C$12 -> 0 | H56: 11233.58983 | I56: 6052.604466 | J56: 14398.08692
A57: 55 | B57: 60.17295582 | C57: -152.6446756 | D57: -1960.024312 | E57: 288.545736 | F57: =Q_d!$C$11 -> 0 | G57: =Q_d!$C$12 -> 0 | H57: 11233.58983 | I57: 6052.604466 | J57: 14397.77161
A58: 56 | B58: 60.17945607 | C58: -152.6354135 | D58: -1959.194978 | E58: 288.8561362 | F58: =Q_d!$C$11 -> 0 | G58: =Q_d!$C$12 -> 0 | H58: 11233.58983 | I58: 6052.604466 | J58: 14396.88737
A59: 57 | B59: 60.18284734 | C59: -152.6284708 | D59: -1958.665822 | E59: 288.9526693 | F59: =Q_d!$C$11 -> 0 | G59: =Q_d!$C$12 -> 0 | H59: 11233.58983 | I59: 6052.604466 | J59: 14396.36382
A60: 58 | B60: 60.18190511 | C60: -152.6276773 | D60: -1958.688314 | E60: 288.8413814 | F60: =Q_d!$C$11 -> 0 | G60: =Q_d!$C$12 -> 0 | H60: 11233.58983 | I60: 6052.604466 | J60: 14396.42899
A61: 59 | B61: 60.18090184 | C61: -152.6250681 | D61: -1958.631552 | E61: 288.6681477 | F61: =Q_d!$C$11 -> 0 | G61: =Q_d!$C$12 -> 0 | H61: 11233.58983 | I61: 6052.604466 | J61: 14396.44633
A62: 60 | B62: 60.17888768 | C62: -152.6198343 | D62: -1958.517772 | E62: 288.3205041 | F62: =Q_d!$C$11 -> 0 | G62: =Q_d!$C$12 -> 0 | H62: 11233.58983 | I62: 6052.604466 | J62: 14396.48126
A63: 61 | B63: 60.17817052 | C63: -152.6125711 | D63: -1958.230203 | E63: 288.02924 | F63: =Q_d!$C$11 -> 0 | G63: =Q_d!$C$12 -> 0 | H63: 11233.58983 | I63: 6052.604466 | J63: 14396.33437
A64: 62 | B64: 60.17692693 | C64: -152.6035532 | D64: -1957.895122 | E64: 287.6351509 | F64: =Q_d!$C$11 -> 0 | G64: =Q_d!$C$12 -> 0 | H64: 11233.58983 | I64: 6052.604466 | J64: 14396.18514
A65: 63 | B65: 60.17526754 | C65: -152.5955118 | D65: -1957.630584 | E65: 287.2331143 | F65: =Q_d!$C$11 -> 0 | G65: =Q_d!$C$12 -> 0 | H65: 11233.58983 | I65: 6052.604466 | J65: 14396.10374
A66: 64 | B66: 60.1709226 | C66: -152.5887827 | D66: -1957.593437 | E66: 286.6246367 | F66: =Q_d!$C$11 -> 0 | G66: =Q_d!$C$12 -> 0 | H66: 11233.58983 | I66: 6052.604466 | J66: 14396.3134
A67: 65 | B67: 60.16563925 | C67: -152.5812906 | D67: -1957.579736 | E67: 285.9061097 | F67: =Q_d!$C$11 -> 0 | G67: =Q_d!$C$12 -> 0 | H67: 11233.58983 | I67: 6052.604466 | J67: 14396.58864
A68: 66 | B68: 60.16372427 | C68: -152.5788187 | D68: =lcpx(B68,C68,63,-115,70,60) -> -1957.585891 | E68: =lcpy(B68,C68,63,-115,70,60) -> 285.6532192 | F68: =Q_d!$C$11 -> 0 | G68: =Q_d!$C$12 -> 0 | H68: =lcpx(F68,G68,63,-115,70,60) -> 11233.58983 | I68: =lcpy(F68,G68,63,-115,70,60) -> 6052.604466 | J68: =SQRT((H68-D68)^2+(I68-E68)^2) -> 14396.69558
A69: 67 | B69: 60.16278585 | C69: -152.5780405 | D69: -1957.608736 | E69: 285.5427205 | F69: =Q_d!$C$11 -> 0 | G69: =Q_d!$C$12 -> 0 | H69: 11233.58983 | I69: 6052.604466 | J69: 14396.76078
A70: 68 | B70: 60.16184362 | C70: -152.5772623 | D70: -1957.631816 | E70: 285.4318695 | F70: =Q_d!$C$11 -> 0 | G70: =Q_d!$C$12 -> 0 | H70: 11233.58983 | I70: 6052.604466 | J70: 14396.82633
A71: 69 | B71: 60.15958151 | C71: -152.577598 | D71: -1957.788158 | E71: 285.2340731 | F71: =Q_d!$C$11 -> 0 | G71: =Q_d!$C$12 -> 0 | H71: 11233.58983 | I71: 6052.604466 | J71: 14397.04881
A72: 70 | B72: 60.15734991 | C72: -152.5788492 | D72: -1957.984532 | E72: 285.0674778 | F72: =Q_d!$C$11 -> 0 | G72: =Q_d!$C$12 -> 0 | H72: 11233.58983 | I72: 6052.604466 | J72: 14397.29548
A73: 71 | B73: 60.1545957 | C73: -152.5783456 | D73: -1958.133108 | E73: 284.7983656 | F73: =Q_d!$C$11 -> 0 | G73: =Q_d!$C$12 -> 0 | H73: 11233.58983 | I73: 6052.604466 | J73: 14397.53942
A74: 72 | B74: 60.15274939 | C74: -152.5777048 | D74: -1958.218812 | E74: 284.6085541 | F74: =Q_d!$C$11 -> 0 | G74: =Q_d!$C$12 -> 0 | H74: 11233.58983 | I74: 6052.604466 | J74: 14397.69399
A75: 73 | B75: 60.15038046 | C75: -152.5752939 | D75: -1958.255992 | E75: 284.3157385 | F75: =Q_d!$C$11 -> 0 | G75: =Q_d!$C$12 -> 0 | H75: 11233.58983 | I75: 6052.604466 | J75: 14397.84536
A76: 74 | B76: 60.14804968 | C76: -152.5737985 | D76: -1958.332722 | E76: 284.0548228 | F76: =Q_d!$C$11 -> 0 | G76: =Q_d!$C$12 -> 0 | H76: 11233.58983 | I76: 6052.604466 | J76: 14398.0202
A77: 75 | B77: 60.14477667 | C77: -152.5715402 | D77: -1958.433193 | E77: 283.6835063 | F77: =Q_d!$C$11 -> 0 | G77: =Q_d!$C$12 -> 0 | H77: 11233.58983 | I77: 6052.604466 | J77: 14398.26103
A78: 76 | B78: 60.14341864 | C78: -152.5717233 | D78: -1958.526202 | E78: 283.5641821 | F78: =Q_d!$C$11 -> 0 | G78: =Q_d!$C$12 -> 0 | H78: 11233.58983 | I78: 6052.604466 | J78: 14398.39405
A79: 77 | B79: 60.14021811 | C79: -152.5712808 | D79: -1958.705349 | E79: 283.2558514 | F79: =Q_d!$C$11 -> 0 | G79: =Q_d!$C$12 -> 0 | H79: 11233.58983 | I79: 6052.604466 | J79: 14398.68173
A80: 78 | B80: 60.13617071 | C80: -152.5728067 | D80: -1959.027479 | E80: 282.9306366 | F80: =Q_d!$C$11 -> 0 | G80: =Q_d!$C$12 -> 0 | H80: 11233.58983 | I80: 6052.604466 | J80: 14399.10718
A81: 79 | B81: 60.13345465 | C81: -152.5732187 | D81: -1959.215609 | E81: 282.6934127 | F81: =Q_d!$C$11 -> 0 | G81: =Q_d!$C$12 -> 0 | H81: 11233.58983 | I81: 6052.604466 | J81: 14399.3746
A82: 80 | B82: 60.13066992 | C82: -152.5717996 | D82: -1959.324081 | E82: 282.3930462 | F82: =Q_d!$C$11 -> 0 | G82: =Q_d!$C$12 -> 0 | H82: 11233.58983 | I82: 6052.604466 | J82: 14399.59435
A83: 81 | B83: 60.12743124 | C83: -152.5704416 | D83: -1959.463625 | E83: 282.0527799 | F83: =Q_d!$C$11 -> 0 | G83: =Q_d!$C$12 -> 0 | H83: 11233.58983 | I83: 6052.604466 | J83: 14399.85855
A84: 82 | B84: 60.12454352 | C84: -152.5662759 | D84: -1959.452549 | E84: 281.6576752 | F84: =Q_d!$C$11 -> 0 | G84: =Q_d!$C$12 -> 0 | H84: 11233.58983 | I84: 6052.604466 | J84: 14400.00674
A85: 83 | B85: 60.12127432 | C85: -152.5640176 | D85: -1959.552667 | E85: 281.2866355 | F85: =Q_d!$C$11 -> 0 | G85: =Q_d!$C$12 -> 0 | H85: 11233.58983 | I85: 6052.604466 | J85: 14400.24717
A86: 84 | B86: 60.11939368 | C86: -152.5624612 | D86: -1959.598451 | E86: 281.0651995 | F86: =Q_d!$C$11 -> 0 | G86: =Q_d!$C$12 -> 0 | H86: 11233.58983 | I86: 6052.604466 | J86: 14400.37786
A87: 85 | B87: 60.11660895 | C87: -152.5610269 | D87: -1959.706147 | E87: 280.7643162 | F87: =Q_d!$C$11 -> 0 | G87: =Q_d!$C$12 -> 0 | H87: 11233.58983 | I87: 6052.604466 | J87: 14400.59712
A88: 86 | B88: 60.11479697 | C88: -152.5613168 | D88: -1959.832326 | E88: 280.6065005 | F88: =Q_d!$C$11 -> 0 | G88: =Q_d!$C$12 -> 0 | H88: 11233.58983 | I88: 6052.604466 | J88: 14400.77598
A89: 87 | B89: 60.11301932 | C89: -152.5624917 | D89: -1959.996967 | E89: 280.4793195 | F89: =Q_d!$C$11 -> 0 | G89: =Q_d!$C$12 -> 0 | H89: 11233.58983 | I89: 6052.604466 | J89: 14400.97779
A90: 88 | B90: 60.11082205 | C90: -152.5646737 | D90: -1960.233957 | E90: 280.3447797 | F90: =Q_d!$C$11 -> 0 | G90: =Q_d!$C$12 -> 0 | H90: 11233.58983 | I90: 6052.604466 | J90: 14401.24884
A91: 89 | B91: 60.10949454 | C91: -152.5657876 | D91: -1960.367767 | E91: 280.2571545 | F91: =Q_d!$C$11 -> 0 | G91: =Q_d!$C$12 -> 0 | H91: 11233.58983 | I91: 6052.604466 | J91: 14401.40655
A92: 90 | B92: 60.10451254 | C92: -152.5665353 | D92: -1960.712475 | E92: 279.8217381 | F92: =Q_d!$C$11 -> 0 | G92: =Q_d!$C$12 -> 0 | H92: 11233.58983 | I92: 6052.604466 | J92: 14401.89688
A93: 91 | B93: 60.10179648 | C93: -152.5669473 | D93: -1960.900607 | E93: 279.5844972 | F93: =Q_d!$C$11 -> 0 | G93: =Q_d!$C$12 -> 0 | H93: 11233.58983 | I93: 6052.604466 | J93: 14402.16433
A94: 92 | B94: 60.09904227 | C94: -152.5664437 | D94: -1961.049105 | E94: 279.3153094 | F94: =Q_d!$C$11 -> 0 | G94: =Q_d!$C$12 -> 0 | H94: 11233.58983 | I94: 6052.604466 | J94: 14402.40828
A95: 93 | B95: 60.09729895 | C95: -152.5685342 | D95: -1961.253663 | E95: 279.2197556 | F95: =Q_d!$C$11 -> 0 | G95: =Q_d!$C$12 -> 0 | H95: 11233.58983 | I95: 6052.604466 | J95: 14402.63399
A96: 94 | B96: 60.096845 | C96: -152.5686105 | D96: -1961.28545 | E96: 279.1803363 | F96: =Q_d!$C$11 -> 0 | G96: =Q_d!$C$12 -> 0 | H96: 11233.58983 | I96: 6052.604466 | J96: 14402.67891
